Workbook

Sheet Contents
A1: Kentucky Power Company
A2: Case No. 2017-00179 | S2: Schedule A (DH)
A3: Exhibit RCS-1
A4: Accompanying the Direct Testimony of Ralph Smith | O4: Schedule | Q4: Exhibit RCS-1 | U4: Issue Folders
A5: Number | B5: Description | C5: No. of Pages | D5: Exhibit Page No. | G5: Begin | H5: End | J5: Range | Y5: Begin | Z5: End | AB5: Range
B6: Revenue Requirement Summary Schedules | G6: 1 | I6: - | Y6: 1 | AA6: -
A7: =M7 -> A | B7: Calculation of Revenue Deficiency (Sufficiency) | C7: 2 | D7: =J7 -> 2-3 | G7: 2 | H7: =G6+C7 -> 3 | I7: - | J7: =IF(G7=H7,H7,G7&I7&H7) -> 2-3 | M7: A | O7: =#REF!&$O$4&M7 ->  | Y7: 3 | Z7: =Y6+C7 -> 3 | AA7: - | AB7: =IF(Y7=Z7,Z7,Y7&AA7&Z7) -> 3
A8: =M8 -> A-1 | B8: Gross Revenue Conversion Factor | C8: 1 | D8: =J8 -> 4 | G8: =H7+1 -> 4 | H8: =H7+C8 -> 4 | I8: - | J8: 4 | M8: A-1 | U8: =A8 -> A-1 | V8: =B8 -> Gross Revenue Conversion Factor | Y8: =Z7+1 -> 4 | Z8: =Z7+R8 -> 3 | AA8: - | AB8: 4-3
A9: B | B9: Adjusted Rate Base | C9: 1 | D9: 5 | G9: 5 | H9: 5 | I9: - | J9: 5 | M9: B | Y9: 4 | Z9: 3 | AA9: - | AB9: 4-3
A10: B.1 | B10: Summary of Rate Base Adjustments | C10: 1 | D10: 6 | G10: 6 | H10: 6 | I10: - | J10: 6 | M10: B.1 | Y10: 4 | Z10: 3 | AA10: - | AB10: 4-3
A11: C | B11: Adjusted Net Operating Income | C11: 1 | D11: 7 | G11: 7 | H11: 7 | I11: - | J11: 7 | M11: C | O11: =#REF!&$O$4&M11 ->  | Y11: 4 | Z11: 3 | AA11: - | AB11: 4-3
A12: C.1 | B12: Summary of Net Operating Income Adjustments | C12: 3 | D12: 8-10 | G12: 8 | H12: 10 | I12: - | J12: 8-10 | M12: C.1 | Y12: 4 | Z12: 3 | AA12: - | AB12: 4-3
A13: D | B13: Capital Structure and Cost Rates | C13: 3 | D13: 11-13 | G13: 11 | H13: 13 | I13: - | J13: 11-13 | M13: D | Y13: 4 | Z13: 3 | AA13: - | AB13: 4-3
B15: Rate Base Adjustments
A16: =O16 -> B-1 | B16: ='B-1'!A2 -> Cash Working Capital | C16: 2 | D16: =J16 -> 14-15 | E16: , | F16: =A16&E16&B16 -> B-1, Cash Working Capital | G16: =H13+1 -> 14 | H16: =H13+C16 -> 15 | I16: - | J16: =IF(G16=H16,H16,G16&I16&H16) -> 14-15 | M16: B- | N16: 1 | O16: =M16&N16 -> B-1 | U16: =A16 -> B-1 | V16: =B16 -> Cash Working Capital | Y16: =Z13+1 -> 4 | Z16: =Z13+R16 -> 3 | AA16: - | AB16: =IF(Y16=Z16,Z16,Y16&AA16&Z16) -> 4-3
A17: =O17 -> B-2 | D17: 16-15 | E17: , | F17: B-2, | G17: =H16+1 -> 16 | H17: =H16+C17 -> 15 | I17: - | J17: 16-15 | M17: B- | N17: =N16+1 -> 2 | O17: =M17&N17 -> B-2 | Q17: 1 | Y17: =Z16+1 -> 4 | Z17: =Z16+R17 -> 3 | AA17: - | AB17: 4-3
A18: B-3 | D18: 16-15 | E18: , | F18: B-3, | G18: 16 | H18: 15 | I18: - | J18: 16-15 | M18: B- | N18: =N17+1 -> 3 | O18: B-3 | Q18: =Q17+1 -> 2 | Y18: =Z17+1 -> 4 | Z18: =Z17+R18 -> 3 | AA18: - | AB18: 4-3
D19: 16-15 | E19: , | F19: , | G19: 16 | H19: 15 | I19: - | J19: 16-15 | M19: B- | N19: 4 | O19: B-4 | Q19: =Q18+1 -> 3 | Y19: =Z18+1 -> 4 | Z19: =Z18+R19 -> 3 | AA19: - | AB19: 4-3
D20: 16-15 | E20: , | F20: , | G20: 16 | H20: 15 | I20: - | J20: 16-15 | M20: B- | N20: 5 | O20: B-5 | Y20: =Z19+1 -> 4 | Z20: =Z19+R20 -> 3 | AA20: - | AB20: 4-3
E21: , | F21: , | G21: 16 | H21: 15 | I21: - | J21: 16-15 | M21: B- | N21: 6 | O21: B-6 | Q21: =#REF!+1 ->  | Y21: =Z20+1 -> 4 | Z21: =Z20+R21 -> 3 | AA21: - | AB21: 4-3
E22: , | F22: , | G22: =H21+1 -> 16 | H22: 15 | I22: - | J22: =IF(G22=H22,H22,G22&I22&H22) -> 16-15 | M22: B- | N22: 7 | O22: =M22&N22 -> B-7
Y23: =Z21+1 -> 4 | Z23: =Z21+R23 -> 3 | AA23: - | AB23: =IF(Y23=Z23,Z23,Y23&AA23&Z23) -> 4-3
B24: Net Operating Income Adjustments | Y24: =Z23+1 -> 4 | Z24: =Z23+R24 -> 3 | AA24: - | AB24: 4-3
A25: =O25 -> C-1 | B25: ='C-1'!A2 -> Theft Recovery Revenue | C25: 1 | D25: =J25 -> 16 | E25: , | F25: =A25&E25&B25 -> C-1, Theft Recovery Revenue | G25: =H16+1 -> 16 | H25: =H16+C25 -> 16 | I25: - | J25: =IF(G25=H25,H25,G25&I25&H25) -> 16 | M25: C- | N25: 1 | O25: C-1 | Y25: =Z24+1 -> 4 | Z25: =Z24+R25 -> 3 | AA25: - | AB25: 4-3
A26: =O26 -> C-2 | B26: ='C-2'!A2 -> Payroll Expense - Employee Merit Increase | C26: 1 | D26: 17 | E26: , | F26: C-2, Payroll Expense - Employee Merit Increase | G26: =H25+1 -> 17 | H26: =H25+C26 -> 17 | I26: - | J26: =IF(G26=H26,H26,G26&I26&H26) -> 17 | M26: C- | N26: =N25+1 -> 2 | O26: C-2 | S26: 1 | Y26: =Z25+1 -> 4 | Z26: =Z25+R26 -> 3 | AA26: - | AB26: 4-3
A27: C-3 | B27: ='C-3'!A2 -> Overtime Payroll Expense Related to Employee Merit Increase | C27: 1 | D27: 18 | E27: , | F27: C-3, Overtime Payroll Expense Related to Employee Merit Increase | G27: =H26+1 -> 18 | H27: 18 | I27: - | J27: =IF(G27=H27,H27,G27&I27&H27) -> 18 | M27: C- | N27: =N26+1 -> 3 | O27: C-3 | S27: =S26+1 -> 2 | Y27: =Z26+1 -> 4 | Z27: =Z26+R27 -> 3 | AA27: - | AB27: 4-3
A28: C-4 | B28: ='C-4'!A2 -> Payroll Tax Expense | C28: 3 | D28: 19-21 | E28: , | F28: C-4, Payroll Tax Expense | G28: =H27+1 -> 19 | H28: 21 | I28: - | J28: =IF(G28=H28,H28,G28&I28&H28) -> 19-21 | M28: C- | N28: 4 | O28: C-4 | S28: =S27+1 -> 3 | Y28: =Z27+1 -> 4 | Z28: =Z27+R28 -> 3 | AA28: - | AB28: 4-3
A29: C-5 | B29: ='C-5'!A2 -> Incentive Compensation Expense | C29: 1 | D29: 22 | E29: , | F29: C-5, Incentive Compensation Expense | G29: =H28+1 -> 22 | H29: 22 | I29: - | J29: =IF(G29=H29,H29,G29&I29&H29) -> 22 | M29: C- | N29: 5 | O29: C-5 | S29: 4 | U29: =A29 -> C-5 | V29: =B29 -> Incentive Compensation Expense
A30: C-6 | B30: ='C-6'!A2 -> Stock-Based Compensation | C30: 1 | D30: 23 | E30: , | F30: C-6, Stock-Based Compensation | G30: 23 | H30: 23 | I30: - | J30: 23 | M30: C- | N30: 6 | O30: C-6 | S30: 5
A31: C-7 | B31: ='C-7'!A2 -> Savings Plan Expense | C31: 1 | D31: 24 | E31: , | F31: =A31&E31&B30 -> C-7, Stock-Based Compensation | G31: 24 | H31: 24 | I31: - | J31: 24 | M31: C- | N31: 7 | O31: C-7 | S31: 6 | Y31: =Z28+1 -> 4 | Z31: =Z28+R31 -> 3 | AA31: - | AB31: =IF(Y31=Z31,Z31,Y31&AA31&Z31) -> 4-3
A32: C-8 | B32: ='C-8'!A2 -> Supplemental Executive Retirement Program ("SERP") Expense | C32: 1 | D32: 25 | E32: , | F32: =A32&E32&B32 -> C-8, Supplemental Executive Retirement Program ("SERP") Expense | G32: 25 | H32: 25 | I32: - | J32: 25 | M32: C- | N32: 8 | O32: C-8 | S32: =S31+1 -> 7 | Y32: =Z31+1 -> 4 | Z32: =Z31+R32 -> 3 | AA32: - | AB32: 4-3
A33: C-9 | B33: ='C-9'!A2 -> Affiliate Charges for Corporate Aviation Expense | C33: 1 | D33: 26 | E33: , | F33: =A33&E33&B31 -> C-9, Savings Plan Expense | G33: 26 | H33: 26 | I33: - | J33: 26 | M33: C- | N33: 9 | O33: C-9 | S33: 8 | Y33: =Z32+1 -> 4 | Z33: 3 | AA33: - | AB33: 4-3
A34: C-10 | B34: ='C-10'!A2 -> Storm Damage Expense | C34: 1 | D34: 27 | E34: , | F34: =A34&E34&B34 -> C-10, Storm Damage Expense | G34: 27 | H34: 27 | I34: - | J34: 27 | M34: C- | N34: 10 | O34: C-10 | S34: 9 | Y34: 4 | Z34: 3 | AA34: - | AB34: 4-3
A35: C-11 | B35: ='C-11'!A2 -> Relocation Expense | C35: 1 | D35: 28 | E35: , | F35: C-11, Relocation Expense | G35: 28 | H35: 28 | I35: - | J35: 28 | M35: C- | N35: 11 | O35: C-11 | S35: 10 | Y35: 4 | Z35: 3 | AA35: - | AB35: 4-3
A36: C-12 | B36: ='C-12'!A2 -> Gain on Sale of Utility Property | C36: 1 | D36: 29 | E36: , | F36: C-12, Gain on Sale of Utility Property | G36: 29 | H36: 29 | I36: - | J36: 29 | M36: C- | N36: 12 | O36: C-12 | S36: 11 | Y36: 4 | Z36: 3 | AA36: - | AB36: 4-3
A37: C-13 | B37: ='C-13'!A2 -> Cash Surrender Value of Life Insurance Policies | C37: 1 | D37: 30 | E37: , | F37: C-13, Cash Surrender Value of Life Insurance Policies | G37: 30 | H37: 30 | I37: - | J37: 30 | M37: C- | N37: 13 | O37: C-13 | S37: 12 | Y37: 4 | Z37: 3 | AA37: - | AB37: 4-3
A38: C-14 | B38: ='C-14Int.Sync'!A2 -> Interest Synchronization | C38: 1 | D38: =J38 -> 31 | E38: , | F38: C-14, Interest Synchronization | G38: 31 | H38: 31 | I38: - | J38: =IF(G38=H38,H38,G38&I38&H38) -> 31 | M38: C- | N38: =N37+1 -> 14 | O38: C-14
A39: C-15 | B39: ='C-15'!A2 -> Rate Case Expense | C39: 1 | D39: 32 | E39: , | F39: C-15, Rate Case Expense | G39: =H38+1 -> 32 | H39: 32 | I39: - | J39: 32 | M39: C- | N39: =N38+1 -> 15 | O39: =M39&N39 -> C-15
A40: C-16 | D40: 33-32 | E40: , | F40: C-16, | G40: 33 | H40: 32 | I40: - | J40: 33-32 | M40: C- | N40: 16 | O40: C-16
A41: C-17 | D41: 33-32 | E41: , | F41: C-17, | G41: 33 | H41: 32 | I41: - | J41: 33-32 | M41: C- | N41: 17 | O41: C-17
A42: C-18 | D42: =J42 -> 33-32 | E42: , | F42: C-18, | G42: =H41+1 -> 33 | H42: 32 | I42: - | J42: =IF(G42=H42,H42,G42&I42&H42) -> 33-32 | M42: C- | N42: 18 | O42: =M42&N42 -> C-18
A43: C-0 | D43: 33-32 | E43: , | F43: C-0, | G43: =H42+1 -> 33 | H43: 32 | I43: - | J43: =IF(G43=H43,H43,G43&I43&H43) -> 33-32 | M43: C- | N43: =S43 -> 0 | O43: =M43&N43 -> C-0
A44: C-0 | D44: 33-32 | E44: , | F44: C-0, | G44: 33 | H44: 32 | I44: - | J44: 33-32 | M44: C- | N44: =S44 -> 0 | O44: C-0
A45: C-0 | D45: 33-32 | E45: , | F45: C-0, | G45: 33 | H45: 32 | I45: - | J45: 33-32 | M45: C- | N45: 0 | O45: C-0
A46: C-0 | D46: 33-32 | E46: , | F46: C-0, | G46: 33 | H46: 32 | I46: - | J46: 33-32 | M46: C- | N46: 0 | O46: C-0
A47: C-0 | D47: 33-32 | E47: , | F47: C-0, | G47: 33 | H47: 32 | I47: - | J47: 33-32 | M47: C- | N47: 0 | O47: C-0
A48: C-0 | D48: 33-32 | E48: , | F48: C-0, | G48: 33 | H48: 32 | I48: - | J48: 33-32 | M48: C- | N48: 0 | O48: C-0
A49: C-0 | D49: 33-32 | E49: , | F49: C-0, | G49: 33 | H49: 32 | I49: - | J49: 33-32 | M49: C- | N49: 0 | O49: C-0
A50: C-0 | D50: 33-32 | E50: , | F50: C-0, | G50: 33 | H50: 32 | I50: - | J50: 33-32 | M50: C- | N50: 0 | O50: C-0
A51: C-19 | D51: 33-32 | E51: , | F51: C-19, | G51: =H50+1 -> 33 | H51: 32 | I51: - | J51: 33-32 | M51: C- | N51: =N42+1 -> 19 | O51: C-19
A52: C-20 | D52: 33-32 | E52: , | F52: C-20, | G52: =H51+1 -> 33 | H52: 32 | I52: - | J52: =IF(G52=H52,H52,G52&I52&H52) -> 33-32 | M52: C- | N52: 20 | O52: C-20
A53: C-21 | D53: 33-32 | E53: , | F53: C-21, | G53: 33 | H53: 32 | I53: - | J53: =IF(G53=H53,H53,G53&I53&H53) -> 33-32 | M53: C- | N53: 21 | O53: =M53&N53 -> C-21
A54: C-22 | D54: 33-32 | E54: , | F54: C-22, | G54: 33 | H54: 32 | I54: - | J54: 33-32 | M54: C- | N54: 22 | O54: C-22
B56: Total Pages (Including Contents Page) | C56: =SUM(C7:C39)+1 -> 32 | M56: C- | N56: =N54+1 -> 23 | O56: C-23 | Y56: =#REF!+1 ->  | Z56: =#REF!+R56 ->  | AA56: - | AB56: =IF(Y56=Z56,Z56,Y56&AA56&Z56) -> 
Y57: =#REF!+1 ->  | Z57: =#REF!+R57 ->  | AA57: -
Y58: =Z57+1 ->  | Z58: =Z57+R58 ->  | AA58: -
AA59: -
AA60: -
AA61: -
AA62: -
AA63: -
AA64: -
AA65: -
AA66: -
AA67: -
AA68: -
AA69: -
AA70: -
AA71: -
AA72: -

Sheet A
A1: =Contents!A1 -> Kentucky Power Company | K1: =Contents!A3 -> Exhibit RCS-1
A2: Calculation of Revenue Deficiency (Sufficiency) | K2: Schedule A
K3: =Contents!A2 -> Case No. 2017-00179
A4: Test Year Ended February 28, 2017 | K4: Page 1 of 2
A6: Line | G6: Per
A7: No. | C7: Description | E7: Reference | G7: Company | I7: Per AG | K7: Difference
G8: (A) | I8: (B) | K8: (C)
A10: 1 | C10: Adjusted Capitalization | E10: Sch B | G10: =B!E40 -> 1191785493 | I10: =B!I40 -> 1191785493 | K10: =I10-G10 -> 0
A11: =A10+1 -> 2 | C11: Rate of return | E11: Sch D | G11: =D!$K$15 -> 0.0675 | I11: =ROUND(D!$K$22,5) -> 0.06034
A12: 3 | C12: Net operating income required | G12: =ROUND(G10*G11,0) -> 80445521 | I12: =ROUND(I10*I11,0) -> 71912337 | K12: =I12-G12 -> -8533184
A13: 4 | C13: Adjusted net operating income | E13: Sch C | G13: ='C'!E31 -> 43690669.66 | I13: ='C'!I31 -> 47647103.63 | K13: =I13-G13 -> 3956433.975
A14: 5 | C14: Net operating income deficiency (Sufficiency) | G14: =G12-G13 -> 36754851.34 | I14: =I12-I13 -> 24265233.37 | K14: =I14-G14 -> -12489617.98
A15: 6 | C15: Gross revenue conversion factor | E15: Sch A-1 | G15: ='A-1'!I20 -> 1.643250765 | I15: ='A-1'!K20 -> 1.643341634
A16: 7 | C16: Revenue deficiency (Sufficiency) | G16: =ROUND(G14*G15,0) -> 60397438 | I16: =ROUND(I14*I15,0) -> 39876068 | K16: =I16-G16 -> -20521370
A17: 8 | C17: Home Energy Assistance Program (HEAP) | G17: 81667 | I17: 81667 | K17: =I17-G17 -> 0
A18: 9 | C18: Kentucky Economic Development Surcharge (KEDS) | G18: 203224 | I18: 0 | K18: -203224
A19: 10 | C19: Environmental Surcharge Related to Rockport Unit 1 SCR | G19: 3903056 | I19: 0 | K19: -3903056
A20: 11 | C20: Total Increase | G20: =SUM(G16:G19) -> 64585385 | I20: =SUM(I16:I19) -> 39957735 | K20: =SUM(K16:K19) -> -24627650
A22: =A20+1 -> 12 | C22: Adjusted operating revenues | E22: Sch C | G22: ='C'!$E$12 -> 499134502.7 | I22: ='C'!$I$12 -> 499301200.2 | K22: =I22-G22 -> 166697.5
A23: 13 | C23: Revenue requirement | E23: Sch C | G23: =G20+G22 -> 563719887.7 | I23: =I20+I22 -> 539258935.2 | K23: =I23-G23 -> -24460952.5
A25: =A23+1 -> 14 | C25: Revenue increase, percent | G25: =G20/G22 -> 0.1293947516 | I25: =I20/I22 -> 0.08002731615
A27: Notes and Source
A28: Col.A: | C28: Section V, Schedule 2 from Company Supplemental filing
A29: Col.B: See referenced schedules
A30: Col.C: | C30: Col B - Col. A

Sheet Ap2
A1: =A!$A$1 -> Kentucky Power Company | M1: =Contents!A3 -> Exhibit RCS-1
A2: Revenue Requirement Reconciliation | M2: Schedule A
M3: =Contents!A2 -> Case No. 2017-00179
A4: =A!A4 -> Test Year Ended February 28, 2017 | M4: Page 2 of 2
M6: AG
E7: Exhibit RCS-1 | M7: Revenue
A8: Line | E8: Schedule | I8: AG | K8: AG | M8: Requirement
A9: No. | C9: Description | E9: Reference | G9: Component | I9: Adjustments | K9: Multiplier | M9: Amount
I10: (A) | K10: (B) | M10: (C)
A12: 1 | E12: D | G12: ROR Difference | K12: =D!$K$24 -> -0.00716
A13: =A12+1 -> 2 | C13: Jurisdictional Capitalization | E13: A-1 | G13: GRCF | J13: x | K13: ='A-1'!K20 -> 1.643341634
A14: =A13+1 -> 3 | C14: Capitalization per KPCo's Filing | E14: B | I14: =A!$G$10 -> 1191785493 | K14: =K12*K13 -> -0.0117663261 | M14: =ROUND(I14*K14,0) -> -14022937
A16: =A14+1 -> 4 | E16: D | G16: Rate of Return | K16: =D!$K$22 -> 0.06034
A17: =A16+1 -> 5 | C17: Effect of AG Adjustments to Rate Base | E17: A-1 | G17: GRCF | J17: x | K17: =$K$13 -> 1.643341634
I18: Sch B.1
A19: =A17+1 -> 6 | C19: =Contents!B16 -> Cash Working Capital | E19: =B.1!$G$7 -> B-1 | I19: =B.1!$G$39 -> 0 | K19: =$K$16*$K$17 -> 0.09915923422 | M19: =ROUND(I19*K19,0) -> 0
A20: =A19+1 -> 7 | C20: Total AG Rate Base Adjustments | I20: =SUM(I19:I19) -> 0
A22: =A20+1 -> 8 | C22: AG Adjusted Capitalization | E22: B&D | I22: =ROUND(I14+I20,0) -> 1191785493
A24: =A22+1 -> 9 | C24: Net Operating Income | G24: Pre-Tax | K24: AG
G25: Operating Income | I25: NOI Amount | K25: GRCF
C26: Effect of AG Adjustments on NOI | G26: Amount | I26: Sch C.1 | K26: Sch. A-1
A27: =A24+1 -> 10 | C27: =Contents!B25 -> Theft Recovery Revenue | E27: =C.1!$G$6 -> C-1 | G27: =C.1!$G$19 -> 166697.5 | I27: =C.1!$G$27 -> 101988.575 | K27: =$K$17 -> 1.643341634 | M27: =-ROUND(I27*K27,0) -> -167602
A28: =A27+1 -> 11 | C28: =Contents!B26 -> Payroll Expense - Employee Merit Increase | E28: =C.1!$H$6 -> C-2 | G28: =C.1!$H$19 -> 57205 | I28: =C.1!$H$27 -> 34999.25 | K28: =$K$17 -> 1.643341634 | M28: -57516
A29: =A28+1 -> 12 | C29: =Contents!B27 -> Overtime Payroll Expense Related to Employee Merit Increase | E29: =C.1!$I$6 -> C-3 | G29: =C.1!$I$19 -> 4148 | I29: =C.1!$I$27 -> 2537.6 | K29: 1.643341634 | M29: -4170
A30: 13 | C30: =Contents!B28 -> Payroll Tax Expense | E30: =C.1!$J$6 -> C-4 | G30: =C.1!$J$19 -> 48362 | I30: =C.1!$J$27 -> 29588.65 | K30: 1.643341634 | M30: -48624
A31: 14 | C31: =Contents!B29 -> Incentive Compensation Expense | E31: =C.1!$K$6 -> C-5 | G31: =C.1!$K$19 -> 1350120 | I31: =C.1!$K$27 -> 826027.15 | K31: 1.643341634 | M31: -1357445
A32: 15 | C32: =Contents!B30 -> Stock-Based Compensation | E32: =C.1!$L$6 -> C-6 | G32: =C.1!$L$19 -> 1746748 | I32: =C.1!$L$27 -> 1068691 | K32: 1.643341634 | M32: -1756224
A33: 16 | C33: =Contents!B31 -> Savings Plan Expense | E33: =C.1!$M$6 -> C-7 | G33: =C.1!$M$19 -> 1102496 | I33: =C.1!$M$27 -> 674526.45 | K33: 1.643341634 | M33: -1108477
A34: 17 | C34: =Contents!B32 -> Supplemental Executive Retirement Program ("SERP") Expense | E34: =C.1!$N$6 -> C-8 | G34: =C.1!$N$19 -> 58726 | I34: =C.1!$N$27 -> 35929.4 | K34: 1.643341634 | M34: -59044
A35: 18 | C35: =Contents!B33 -> Affiliate Charges for Corporate Aviation Expense | E35: =C.1!$O$6 -> C-9 | G35: =C.1!$O$19 -> 382769 | I35: =C.1!$O$27 -> 234184.6 | K35: 1.643341634 | M35: -384845
A36: 19 | C36: =Contents!B34 -> Storm Damage Expense | E36: =C.1!$P$6 -> C-10 | G36: =C.1!$P$19 -> 595932 | I36: =C.1!$P$27 -> 364601.9 | K36: 1.643341634 | M36: -599165
A37: 20 | C37: =Contents!B35 -> Relocation Expense | E37: =C.1!$Q$6 -> C-11 | G37: =C.1!$Q$19 -> 140972 | I37: =C.1!$Q$27 -> 86249.15 | K37: 1.643341634 | M37: -141737
A38: 21 | C38: =Contents!B36 -> Gain on Sale of Utility Property | E38: =C.1!$R$6 -> C-12 | G38: =C.1!$R$19 -> 327240 | I38: =C.1!$R$27 -> 200211.05 | K38: 1.643341634 | M38: -329015
A39: 22 | C39: =Contents!B37 -> Cash Surrender Value of Life Insurance Policies | E39: =C.1!$S$6 -> C-13 | G39: =C.1!$S$19 -> 26941 | I39: =C.1!$S$27 -> 16482.7 | K39: 1.643341634 | M39: -27087
A40: 23 | C40: =Contents!B38 -> Interest Synchronization | E40: =C.1!$T$6 -> C-14 | G40: =C.1!$T$19 -> 0 | I40: =C.1!$T$27 -> 0 | K40: 1.643341634 | M40: 0
A41: 24 | C41: =Contents!B39 -> Rate Case Expense | E41: =C.1!$U$6 -> C-15 | G41: =C.1!$U$19 -> 458333 | I41: =C.1!$U$27 -> 280416.5 | K41: 1.643341634 | M41: -460820
A42: 25 | C42: Total AG Adjustments to Operating Income | E42: C.1 | G42: =SUM(G27:G41) -> 6466689.5 | I42: =SUM(I27:I41) -> 3956433.975
A43: 26 | C43: Net Operating Income per Company Filing | E43: C | I43: =ROUND(A!$G$13,0) -> 43690670
A44: 27 | C44: AG Adjusted Net Operating Income | E44: C | I44: =SUM(I42:I43) -> 47647103.98
C46: Gross Revenue Conversion Factor Difference:
A47: =A44+1 -> 28 | C47: Per AG | E47: A-1 | K47: ='A-1'!K20 -> 1.643341634
A48: =A47+1 -> 29 | C48: Per Company | E48: A-1 | K48: ='A-1'!$I$20 -> 1.643250765
A49: 30 | C49: Difference | K49: =K47-K48 -> 9.086912187e-05
A50: 31 | C50: Company Adjusted NOI Deficiency | E50: A | K50: =A!$G$14 -> 36754851.34
A51: 32 | C51: GRCF Difference | M51: =ROUND(K49*K50,0) -> 3340
A52: 33 | C52: AG REVENUE REQUIREMENT ADJUSTMENTS ABOVE | M52: =SUM(M14:M51) -> -20521368
A53: 34 | C53: Company Requested Base Rate Revenue Increase (Decrease) | E53: A | M53: =A!G16 -> 60397438
A54: 35 | C54: Reconciled Revenue Requirement | M54: =M52+M53 -> 39876070
A55: 36 | C55: Revenue Requirement Calculated on Schedule A | E55: A | M55: =A!I16 -> 39876068
A56: 37 | C56: Difference Not Accounted for Above | E56: A | M56: =M54-M55 -> 2
A58: Notes and Source
A59: Pre-tax return computed using Gross Revenue Conversion Factor
A61: Cash Working Capital does not flow through to the capitalization, thus CWC has no impact on the revenue requirement

Sheet A-1
A1: =Contents!A1 -> Kentucky Power Company | K1: =Contents!A3 -> Exhibit RCS-1
A2: Gross Revenue Conversion Factor | K2: Schedule A-1
K3: =Contents!A2 -> Case No. 2017-00179
A4: =A!A4 -> Test Year Ended February 28, 2017 | K4: Page 1 of 1
A7: Line | I7: Per | K7: Per
A8: No. | C8: Description | E8: Reference | G8: Tax Rates | I8: Company | K8: AG
I9: (A) | K9: (B)
A11: 1 | C11: Operating Revenues | I11: 1 | K11: 1
A12: =A11+1 -> 2 | C12: Uncollectible Accounts Expense | E12: Note A | I12: 0.0034 | K12: =I12 -> 0.0034
A13: =A12+1 -> 3 | C13: KPSC Maintenance Fee | E13: Note A | I13: 0.001941 | K13: 0.001996
A14: 4 | C14: Income Before State Taxes | I14: =I11-I12-I13 -> 0.994659 | K14: =K11-K12-K13 -> 0.994604
A15: 5 | C15: Less: State Income Taxes | E15: Note A | G15: 0.05874221 | I15: =I14*G15 -> 0.05842846786 | K15: =K14*G15 -> 0.05842523703
A16: 6 | C16: Income Before Federal Income Taxes | I16: =I14-I15 -> 0.9362305321 | K16: =K14-K15 -> 0.936178763
A17: 7 | C17: Less: Federal Income Taxes | E17: Note A | G17: 0.35 | I17: =I16*G17 -> 0.3276806863 | K17: =K16*G17 -> 0.327662567
A18: 8 | C18: Operating Income Percentage | I18: =I16-I17 -> 0.6085498459 | K18: =K16-K17 -> 0.6085161959
A20: =A18+1 -> 9 | C20: Gross Revenue Conversion Factor | E20: Note A | I20: =I11/I18 -> 1.643250765 | K20: =K11/K18 -> 1.643341634
A22: Notes and Source
A23: [A] | C23: Section V, Exhibit 1, Workpaper S-2, page 2 from KPCo filing
A24: [B] | C24: Per the response to KPSC-2-011, on June 1, 2017, the Kentucky Department of Revenue provided the new assessment rate for FY 2017-2018
A26: =A20+1 -> 10 | C26: Combined state and federal income tax rate | G26: (L5 + L7) / L4 | I26: =(K17+K15)/K14 -> 0.3881824365
C28: Components of Base Rate Revenue Change
E29: Percent | G29: Per AG
A31: =A26+1 -> 11 | C31: Revenue Change | G31: =A!I16 -> 39876068
C32: Change in Expenses and Net Operating Income:
A33: =A31+1 -> 12 | C33: =C12 -> Uncollectible Accounts Expense | E33: =I12 -> 0.0034 | G33: =ROUND($G$31*E33,0) -> 135579
A34: =A33+1 -> 13 | C34: KPSC Maintenance Fee | E34: =$I$13 -> 0.001941 | G34: =ROUND($G$31*E34,0) -> 77399
A35: 14 | C35: State Income Taxes | E35: =I15 -> 0.05842846786 | G35: =ROUND($G$31*E35,0) -> 2329898
A36: 15 | C36: Federal Income Taxes | E36: =I17 -> 0.3276806863 | G36: =ROUND($G$31*E36,0) -> 13066617
A37: 16 | C37: Net Operating Income | E37: =I18 -> 0.6085498459 | G37: =ROUND($G$31*E37,0) -> 24266575
A38: 17 | C38: Total Revenue Change | E38: =SUM(E33:E37) -> 1 | G38: =SUM(G33:G37) -> 39876068

Sheet B
A1: =A!$A$1 -> Kentucky Power Company | I1: =Contents!$Q$4 -> Exhibit RCS-1
A2: Adjusted Rate Base | I2: Schedule B
I3: =Contents!A2 -> Case No. 2017-00179
A4: =A!A4 -> Test Year Ended February 28, 2017 | I4: Page 1 of 1
A7: Line | E7: Company | G7: AG | I7: AG
A8: No. | C8: Description | E8: Proposed | G8: Adjustments | I8: Proposed
C9: RATE BASE | E9: (A) | G9: (B) | I9: (C)
C10: Electric Utility Plant
A11: 1 | C11: Electric Plant in Service - Original Cost | E11: 2238076966 | G11: =B.1!E9 -> 0 | I11: =E11+G11 -> 2238076966
A12: =A11+1 -> 2 | C12: Electric Plant Held for Future Use | E12: 626976 | G12: =B.1!E11 -> 0 | I12: =E12+G12 -> 626976
A13: =A12+1 -> 3 | C13: Construction Work in Progress | E13: 25944903 | G13: =B.1!E14 -> 0 | I13: 25944903
A14: =A13+1 -> 4 | C14: Total Electric Utility Plant | E14: =SUM(E11:E13) -> 2264648845 | G14: =SUM(G11:G13) -> 0 | I14: =SUM(I11:I13) -> 2264648845
A16: =A14+1 -> 5 | C16: Accumulated Provision for Depreciation & Amortization | E16: -764544392 | G16: =B.1!E17 -> 0 | I16: =E16+G16 -> -764544392
G17: =B.1!E18 -> 0
A18: =A16+1 -> 6 | C18: Net Electric Utility Plant | E18: =E14+SUM(E16:E17) -> 1500104453 | G18: =G14+SUM(G16:G17) -> 0 | I18: =I14+SUM(I16:I17) -> 1500104453
C20: Materials and Supplies
A21: =A18+1 -> 7 | C21: Fuel / Allowance Inventory | E21: 22144134 | G21: =B.1!E22 -> 0 | I21: =E21+G21 -> 22144134
A22: =A21+1 -> 8 | C22: Production M&S Inventory | E22: 11446678 | G22: =B.1!E23 -> 0 | I22: 11446678
A23: =A22+1 -> 9 | C23: Production M&S Inventory | E23: 331383 | G23: =B.1!E24 -> 0 | I23: 331383
A24: 10 | C24: Transmission M&S Inventory | E24: 351591 | G24: =B.1!E25 -> 0 | I24: 351591
A25: 11 | C25: Distribution M&S Inventory | E25: 2070789 | G25: =B.1!E26 -> 0 | I25: 2070789
A26: 12 | C26: Total Materials and Supplies | E26: =SUM(E21:E25) -> 36344575 | G26: =SUM(G21:G25) -> 0 | I26: =SUM(I21:I25) -> 36344575
C28: Additions to Rate Base
A29: =A26+1 -> 13 | C29: Prepayments | E29: 49905719 | G29: =B.1!E30 -> 0 | I29: =E29+G29 -> 49905719
A30: =A29+1 -> 14 | C30: Cash Working Capital | E30: 19694529.18 | G30: =B.1!E31 -> -740549 | I30: 18953980.18
A31: =A30+1 -> 15 | C31: Total Additions to Rate Base | E31: =SUM(E29:E30) -> 69600248.18 | G31: =SUM(G29:G30) -> -740549 | I31: =SUM(I29:I30) -> 68859699.18
C33: Deductions from Rate Base
A34: =A31+1 -> 16 | C34: Customer Advances & Deposits | E34: -27076876 | G34: =B.1!E35 -> 0 | I34: =E34+G34 -> -27076876
A35: =A34+1 -> 17 | C35: Accumulated Deferred Income Taxes | E35: -384084108 | G35: =B.1!E36 -> 0 | I35: -384084108
A36: =A35+1 -> 18 | C36: Total Deductions from Rate Base | E36: =SUM(E34:E35) -> -411160984 | G36: =SUM(G34:G35) -> 0 | I36: =SUM(I34:I35) -> -411160984
A38: =A36+1 -> 19 | C38: Total Rate Base | E38: =E18+E26+E31+E36 -> 1194888292 | G38: =G18+G26+G31+G36 -> -740549 | I38: =I18+I26+I31+I36 -> 1194147743
A40: =A38+1 -> 20 | C40: Jurisdictional Capitalization - see page 2 | E40: ='D P2'!AB18 -> 1191785493 | G40: ='D P3'!M19 -> 0 | I40: =E40+G40 -> 1191785493
A43: Notes and Source
A44: Col. A: Amounts from Section V, Schedule 4 from KPCo's filing
A45: Col. B: See Schedule B-1

Sheet B.1
A1: =Contents!A1 -> Kentucky Power Company | I1: Exhibit RCS-1
A2: Summary of Adjustments to Rate Base | I2: Schedule B.1
I3: =Contents!A2 -> Case No. 2017-00179
A4: =A!A4 -> Test Year Ended February 28, 2017 | I4: Page 1 of 1
A6: Line No. | C6: Description | E6: AG Adjustments | I6: Cash Working Capital
G7: =Contents!$A16 -> B-1 | H7: =Contents!$A17 -> B-2 | I7: =Contents!A16 -> B-1
C8: Electric Utility Plant
A9: 1 | C9: Electric Plant in Service - Original Cost | E9: =SUM(G9:I9) -> 0
A10: 2 | C10: Property Under Capital Leases | E10: 0
A11: 3 | C11: Electric Plant Held for Future Use | E11: 0
A12: 4 | C12: Construction Completed Not Classified | E12: 0
A13: 4 | C13: Accrued Capital Leases | E13: 0
A14: 5 | C14: Construction Work in Progress | E14: 0
A15: 6 | C15: Total Electric Utility Plant | E15: =SUM(E9:E14) -> 0 | G15: =SUM(G9:G14) -> 0 | H15: 0 | I15: 0
A17: 7 | C17: Accumulated Provision for Depreciation | E17: =SUM(G17:I17) -> 0
A18: 8 | C18: Accumulated Provision for Amortization | E18: =SUM(G18:I18) -> 0
A19: 9 | C19: Net Electric Utility Plant | E19: =E15+SUM(E17:E18) -> 0 | G19: =G15+SUM(G17:G18) -> 0 | H19: 0 | I19: 0
C21: Materials and Supplies
A22: 10 | C22: Fuel | E22: =SUM(G22:I22) -> 0
A23: 11 | C23: SO2 Allowance Inventory - Current | E23: =SUM(G23:I23) -> 0
A24: 12 | C24: CO2 Allowance Inventory - Current | E24: =SUM(G24:I24) -> 0
A25: 13 | C25: Urea | E25: =SUM(G25:I25) -> 0
A26: 14 | C26: Other Accounts | E26: =SUM(G26:I26) -> 0
A27: 15 | C27: Total Materials and Supplies | E27: =SUM(E22:E26) -> 0 | G27: =SUM(G22:G26) -> 0 | H27: 0 | I27: 0
C29: Additions to Rate Base
A30: 16 | C30: Prepayments and Other Current Assets | E30: =SUM(G30:I30) -> 0
A31: 17 | C31: Cash Working Capital | E31: =SUM(G31:I31) -> -740549 | I31: -740549
A32: 18 | C32: Total Additions to Rate Base | E32: =SUM(E30:E31) -> -740549 | G32: =SUM(G30:G31) -> 0 | H32: 0 | I32: -740549
C34: Deductions from Rate Base
A35: 18 | C35: Customer Advances & Deposits | E35: =SUM(G35:I35) -> 0
A36: 19 | C36: Accumulated Deferred Income Taxes | E36: =SUM(G36:I36) -> 0
A37: 20 | C37: Total Deductions from Rate Base | E37: =SUM(E35:E36) -> 0 | G37: =SUM(G35:G36) -> 0 | H37: 0 | I37: 0
A39: 21 | C39: Total Rate Base | E39: =E19+E27+E32+E37 -> -740549 | G39: =G19+G27+G32+G37 -> 0 | H39: 0 | I39: -740549
A41: Notes and Source
A42: See referenced schedule for each adjustment

Sheet C
A1: =Contents!A1 -> Kentucky Power Company | M1: =Contents!$Q$4 -> Exhibit RCS-1
A2: Adjusted Net Operating Income | M2: Schedule C
M3: =Contents!A2 -> Case No. 2017-00179
A4: =A!A4 -> Test Year Ended February 28, 2017 | M4: Page 1 of 1
G6: Per AG
K7: Components | M7: Revenue
A8: Line | E8: Per | G8: AG | I8: Per | K8: of Revenue | M8: Requirement
A9: No. | C9: Description | E9: Company | G9: Adjustments | I9: AG | K9: Change | M9: Impact
E10: (A) | G10: (B) | I10: (C ) | K10: (D) | M10: (E)
C11: Operating Revenue
A12: 1 | C12: Sales of Electricity | E12: 499134502.7 | G12: =C.1!E9 -> 166697.5 | I12: =E12+G12 -> 499301200.2 | K12: ='A-1'!G31 -> 39876068 | M12: =I12+K12 -> 539177268.2
A13: =A12+1 -> 2 | C13: Other Operating Revenues | E13: 25618746.32 | G13: =C.1!E10 -> 0 | I13: =E13+G13 -> 25618746.32 | M13: =I13+K13 -> 25618746.32
C14: Non-Firm Sales | E14: 42357604.4 | I14: =E14+G14 -> 42357604.4 | M14: =I14+K14 -> 42357604.4
A15: =A13+1 -> 3 | C15: Total Operating Revenues | E15: =SUM(E12:E14) -> 567110853.4 | G15: =SUM(G12:G14) -> 166697.5 | I15: =SUM(I12:I14) -> 567277550.9 | K15: =SUM(K12:K14) -> 39876068 | M15: =SUM(M12:M14) -> 607153618.9
C17: Operating Expenses | I17: =E17+G17 -> 0
A18: =A15+1 -> 4 | C18: Operations & Maintenance | E18: 415562822.4 | G18: =C.1!E14 -> -5924390 | I18: 409638432.4 | K18: ='A-1'!G33+'A-1'!G34 -> 212978 | M18: =I18+K18 -> 409851410.4
A19: =A18+1 -> 5 | C19: Depreciation & Amortization | E19: 78540443.18 | G19: =C.1!E15 -> -327240 | I19: 78213203.18 | M19: 78213203.18
A20: 6 | C20: Taxes Other Than Income Taxes | E20: 22412856.24 | G20: =C.1!E16 -> -48362 | I20: 22364494.24 | M20: 22364494.24
A21: 7 | C21: Other Including Customer Deposits | E21: 2918287.85 | G21: =C.1!E17 -> 0 | I21: 2918287.85 | M21: 2918287.85
A22: 8 | C22: State Income Tax | E22: -672155 | G22: =C.1!E20 -> 379868 | I22: -292287 | K22: ='A-1'!G35 -> 2329898 | M22: 2037611
A23: 9 | C23: Federal Income Tax: | I23: 0 | M23: 0
A24: 10 | C24: Current | E24: -13268397 | G24: =C.1!E22 -> 2130387.525 | I24: -11138009.47 | K24: ='A-1'!G36 -> 13066617 | M24: 1928607.525
A25: 11 | C25: Deferred | E25: 19577087 | G25: =C.1!E23 -> 0 | I25: 19577087 | M25: 19577087
A26: 12 | C26: ITC Adjustment | E26: 0 | G26: =C.1!E24 -> 0 | I26: 0 | M26: 0
A27: 13 | C27: Total Operating Expenses | E27: =SUM(E18:E26) -> 525070944.7 | G27: =SUM(G18:G26) -> -3789736.475 | I27: =SUM(I18:I26) -> 521281208.2 | K27: =SUM(K18:K26) -> 15609493 | M27: =SUM(M18:M26) -> 536890701.2
A29: =A27+1 -> 14 | C29: Net Electric Operating Income | E29: =E15-E27 -> 42039908.66 | G29: =G15-G27 -> 3956433.975 | I29: =I15-I27 -> 45996342.63 | K29: =K15-K27 -> 24266575 | M29: =M15-M27 -> 70262917.63
A30: 15 | C30: AFUDC Offset Adjustment/Deferred Income | E30: 1650761 | G30: =C.1!E28 -> 0 | I30: =E30+G30 -> 1650761 | M30: =I30+K30 -> 1650761
A31: 16 | C31: Net Electric Operating Income - Adjusted | E31: =E29+E30 -> 43690669.66 | G31: =G29+G30 -> 3956433.975 | I31: =I29+I30 -> 47647103.63 | K31: =K29+K30 -> 24266575 | M31: =M29+M30 -> 71913678.63
A33: =A31+1 -> 17 | C33: Capitalization | E33: =B!E40 -> 1191785493 | G33: =B!G40 -> 0 | I33: =E33+G33 -> 1191785493 | M33: =I33 -> 1191785493
A35: =A33+1 -> 18 | C35: Earned Rate of Return | E35: =ROUND(E31/E33,4) -> 0.0367 | I35: =ROUND(I31/I33,4) -> 0.04 | M35: =ROUND(M31/M33,4) -> 0.0603
A37: Notes and Source
A38: Col.A: | C38: KPCo Exhibit 1, Section V, Schedule 1
A39: Col.B: | C39: Schedule C.1
A40: Col.C: | C40: Col.A + Col.B
A41: Col.D: | C41: Schedule A-1
A42: Col.E: | C42: Col. C + Col. D

Sheet C.1
A1: =Contents!A1 -> Kentucky Power Company
A2: Summary of Net Operating Income Adjustments
A4: =A!A4 -> Test Year Ended February 28, 2017
A5: Line No. | C5: Description | E5: AG Adjustments | G5: Theft Recovery Revenue | H5: Payroll Expense - Employee Merit Increase | I5: Overtime Payroll Expense - Employee Merit Increase | J5: Payroll Taxes | K5: Incentive Compensation Expense | L5: Stock-Based Compensation | M5: Savings Plan Expense | N5: SERP Expense | O5: Corporate Aviation Expense | P5: Storm Damage Expense | Q5: Relocation Expense | R5: Gain on Sale of Utility Property | S5: Cash Surrender Value of Life Insurance Policies | T5: Interest Synchronization | U5: Rate Case Expense
G6: =Contents!$A$25 -> C-1 | H6: =Contents!$A$26 -> C-2 | I6: =Contents!$A$27 -> C-3 | J6: =Contents!$A$28 -> C-4 | K6: =Contents!$A$29 -> C-5 | L6: =Contents!$A$30 -> C-6 | M6: =Contents!$A$31 -> C-7 | N6: =Contents!$A$32 -> C-8 | O6: =Contents!$A$33 -> C-9 | P6: =Contents!$A$34 -> C-10 | Q6: =Contents!$A$35 -> C-11 | R6: =Contents!$A$36 -> C-12 | S6: =Contents!$A$37 -> C-13 | T6: C-14 | U6: C-15
C8: Operating Revenue
A9: 1 | C9: Sales of Electricity | E9: =SUM(G9:X9) -> 166697.5 | G9: ='C-1'!E13 -> 166697.5
A10: =A9+1 -> 2 | C10: Other Operating Revenues | E10: =SUM(G10:X10) -> 0
A11: =A10+1 -> 3 | C11: Total Operating Revenues | E11: =SUM(E9:E10) -> 166697.5 | G11: =SUM(G9:G10) -> 166697.5 | H11: =SUM(H9:H10) -> 0 | I11: 0 | J11: 0 | K11: 0 | L11: 0 | M11: 0 | N11: 0 | O11: 0 | P11: 0 | Q11: 0 | R11: 0 | S11: 0 | T11: 0 | U11: 0
C13: Operating Expenses
A14: =A11+1 -> 4 | C14: Operations & Maintenance | E14: =SUM(G14:X14) -> -5924390 | H14: ='C-2'!S74 -> -57205 | I14: ='C-3'!L50 -> -4148 | K14: ='C-5'!E10 -> -1350120 | L14: ='C-6'!E10 -> -1746748 | M14: ='C-7'!E19 -> -1102496 | N14: ='C-8'!E13 -> -58726 | O14: ='C-9'!E11 -> -382769 | P14: ='C-10'!E11 -> -595932 | Q14: ='C-11'!E10 -> -140972 | S14: ='C-13'!E12 -> -26941 | U14: ='C-15'!E11 -> -458333
A15: =A14+1 -> 5 | C15: Depreciation & Amortization | E15: -327240 | R15: ='C-12'!E10 -> -327240
A16: =A15+1 -> 6 | C16: Taxes Other Than Income Taxes | E16: -48362 | J16: ='C-4'!E30 -> -48362
A17: 7 | C17: Other Including Customer Deposits | E17: 0
A18: 8 | C18: Operating Expenses Before Taxes | E18: =SUM(E14:E17) -> -6299992 | G18: =SUM(G14:G17) -> 0 | H18: =SUM(H14:H17) -> -57205 | I18: -4148 | J18: -48362 | K18: -1350120 | L18: -1746748 | M18: -1102496 | N18: -58726 | O18: -382769 | P18: -595932 | Q18: -140972 | R18: -327240 | S18: -26941 | T18: 0 | U18: -458333
A19: 9 | C19: Operating Income Before Income Taxes | E19: =E11-E18 -> 6466689.5 | G19: =G11-G18 -> 166697.5 | H19: 57205 | I19: 4148 | J19: 48362 | K19: 1350120 | L19: 1746748 | M19: 1102496 | N19: 58726 | O19: 382769 | P19: 595932 | Q19: 140972 | R19: 327240 | S19: 26941 | T19: 0 | U19: 458333
A20: 10 | C20: State Income Tax | E20: =SUM(G20:X20) -> 379868 | G20: =ROUND(G19*D32,0) -> 9792 | H20: =ROUND(H19*D32,0) -> 3360 | I20: =ROUND(I19*D32,0) -> 244 | J20: =ROUND(J19*D32,0) -> 2841 | K20: =ROUND(K19*D32,0) -> 79309 | L20: =ROUND(L19*D32,0) -> 102608 | M20: =ROUND(M19*D32,0) -> 64763 | N20: =ROUND(N19*D32,0) -> 3450 | O20: =ROUND(O19*D32,0) -> 22485 | P20: =ROUND(P19*D32,0) -> 35006 | Q20: =ROUND(Q19*D32,0) -> 8281 | R20: =ROUND(R19*D32,0) -> 19223 | S20: =ROUND(S19*D32,0) -> 1583 | T20: =ROUND(T19*D32,0) -> 0 | U20: =ROUND(U19*D32,0) -> 26923
A21: 11 | C21: Federal Income Tax:
A22: =A21+1 -> 12 | C22: Current | E22: =SUM(G22:X22) -> 2130387.525 | G22: =(G19-G20)*D33 -> 54916.925 | H22: =(H19-H20)*D33 -> 18845.75 | I22: =(I19-I20)*D33 -> 1366.4 | J22: =(J19-J20)*D33 -> 15932.35 | K22: =(K19-K20)*D33 -> 444783.85 | L22: =(L19-L20)*D33 -> 575449 | M22: =(M19-M20)*D33 -> 363206.55 | N22: =(N19-N20)*D33 -> 19346.6 | O22: =(O19-O20)*D33 -> 126099.4 | P22: =(P19-P20)*D33 -> 196324.1 | Q22: =(Q19-Q20)*D33 -> 46441.85 | R22: =(R19-R20)*D33 -> 107805.95 | S22: =(S19-S20)*D33 -> 8875.3 | T22: =(T19-T20)*D33 -> 0 | U22: =(U19-U20)*D33 -> 150993.5
A23: 13 | C23: Deferred | E23: 0
A24: 14 | C24: ITC Adjustment | E24: 0
A25: 15 | C25: Total State and Federal Income Taxes | E25: =SUM(E20:E24) -> 2510255.525 | G25: =SUM(G20:G24) -> 64708.925 | H25: =SUM(H20:H24) -> 22205.75 | I25: 1610.4 | J25: 18773.35 | K25: 524092.85 | L25: 678057 | M25: 427969.55 | N25: 22796.6 | O25: 148584.4 | P25: 231330.1 | Q25: 54722.85 | R25: 127028.95 | S25: 10458.3 | T25: 0 | U25: 177916.5
A26: 16 | C26: Total Operating Expenses | E26: =E18+E25 -> -3789736.475 | G26: =G18+G25 -> 64708.925 | H26: -34999.25 | I26: -2537.6 | J26: -29588.65 | K26: -826027.15 | L26: -1068691 | M26: -674526.45 | N26: -35929.4 | O26: -234184.6 | P26: -364601.9 | Q26: -86249.15 | R26: -200211.05 | S26: -16482.7 | T26: 0 | U26: -280416.5
A27: =A26+1 -> 17 | C27: Net Electric Operating Income | E27: =E11-E26 -> 3956433.975 | G27: =G11-G26 -> 101988.575 | H27: 34999.25 | I27: 2537.6 | J27: 29588.65 | K27: 826027.15 | L27: 1068691 | M27: 674526.45 | N27: 35929.4 | O27: 234184.6 | P27: 364601.9 | Q27: 86249.15 | R27: 200211.05 | S27: 16482.7 | T27: 0 | U27: 280416.5
A28: =A27+1 -> 18 | C28: AFUDC Offset Adjustment/Deferred Income | E28: =SUM(G28:X28) -> 0
A29: 19 | C29: Net Electric Operating Income - Adjusted | E29: =E27+E28 -> 3956433.975 | G29: =G27+G28 -> 101988.575 | H29: 34999.25 | I29: 2537.6 | J29: 29588.65 | K29: 826027.15 | L29: 1068691 | M29: 674526.45 | N29: 35929.4 | O29: 234184.6 | P29: 364601.9 | Q29: 86249.15 | R29: 200211.05 | S29: 16482.7 | T29: 0 | U29: 280416.5
A31: Notes and Source
A32: Line 10 State Income Tax | D32: ='A-1'!G15 -> 0.05874221
A33: Line 12 Federal Income Tax | D33: ='A-1'!G17 -> 0.35

Sheet D
A1: =Contents!A1 -> Kentucky Power Company | K1: =Contents!A3 -> Exhibit RCS-1
A2: Capital Structure and Cost Rates | K2: Schedule D
K3: =Contents!A2 -> Case No. 2017-00179
A4: =A!A4 -> Test Year Ended February 28, 2017 | K4: Page 1 of 3
G6: Capital
A7: Line | G7: Structure | I7: Cost | K7: Weighted
A8: No. | C8: Description | E8: Amount | G8: Ratio | I8: Rate | K8: Cost
E9: (A) | G9: (B) | I9: (C) | K9: (D)
C10: I. Per Company
A11: 1 | C11: Long Term Debt | E11: 648913758.2 | G11: =ROUND(E11/$E$15,4) -> 0.5445 | I11: 0.0436 | K11: =ROUND(G11*I11,4) -> 0.0237
A12: =A11+1 -> 2 | C12: Short Term Debt | E12: 0 | G12: =ROUND(E12/$E$15,4) -> 0 | I12: 0.008 | K12: =ROUND(G12*I12,4) -> 0
A13: =A12+1 -> 3 | C13: Accounts Receivable Financing | E13: 46105008.99 | G13: 0.0387 | I13: 0.0195 | K13: =ROUND(G13*I13,4) -> 0.0008
A14: 4 | C14: Common Equity | E14: 496766725.8 | G14: 0.4168 | I14: 0.1031 | K14: =ROUND(G14*I14,4) -> 0.043
A15: 5 | C15: Total | E15: =SUM(E11:E14) -> 1191785493 | G15: =SUM(G11:G14) -> 1 | K15: =ROUND(SUM(K10:K14),4) -> 0.0675
C17: II. Per AG
A18: =A15+1 -> 6 | C18: Long Term Debt | E18: ='D P3'!O13 -> 648913758.2 | G18: =E18/$E$22 -> 0.5444887205 | I18: =I11 -> 0.0436 | K18: =ROUND(G18*I18,5) -> 0.02374
A19: =A18+1 -> 7 | C19: Short Term Debt | E19: ='D P3'!O14 -> 0 | G19: =E19/$E$22 -> 0 | I19: =I12 -> 0.008 | K19: =ROUND(G19*I19,5) -> 0
A20: 8 | C20: Accounts Receivable Financing | E20: ='D P3'!O15 -> 46105008.99 | G20: 0.03868566052 | I20: =I13 -> 0.0195 | K20: 0.00075
A21: 9 | C21: Common Equity | E21: ='D P3'!O16 -> 496766725.8 | G21: 0.416825619 | I21: 0.086 | K21: 0.03585
A22: 10 | C22: Total | E22: =SUM(E18:E21) -> 1191785493 | G22: =SUM(G18:G21) -> 1 | K22: =SUM(K17:K21) -> 0.06034
A24: =A22+1 -> 11 | C24: Difference | G24: L.10 - L.5 | K24: =K22-K15 -> -0.00716
A26: =A24+1 -> 12 | C26: Weighted Cost of Debt per AG | G26: Sum of Lines 6, 7 & 8 | K26: =SUM(K18:K20) -> 0.02449
A29: Notes
A30: Cols. A-D (Lines 1-5): Section V, Workpaper S-2 from filing. See page 2 of this schedule for a reproduction of KPCo's capitalization related adjustments.
A31: Col. C, lines 6-9: Cost rates and Return on Equity as recommended by AG witness J. Randall Woolridge

Sheet D P2
A1: =Contents!A1 -> Kentucky Power Company | AB1: =Contents!A3 -> Exhibit RCS-1
A2: Capital Structure and Cost Rates - Capitalization | AB2: Schedule D
AB3: =Contents!A2 -> Case No. 2017-00179
A4: =A!A4 -> Test Year Ended February 28, 2017 | AB4: Page 2 of 3
G6: KY Retail | X6: Adjustments
G7: ALLOCATED | I7: BSRR/ | K7: Mitchell FGD | M7: Mitchell FGD | O7: Mitchell | Q7: FRECO | U7: Non | X7: Kentucky | AB7: Reapportioned
A8: Line | E8: PER BOOK | G8: PER BOOK | I8: Decommissioning | K8: Consumables | M8: From Base to | O8: Coal Stock | Q8: A/C 124 | S8: CARRS | U8: Utility | X8: Jurisdiction | AB8: Kentucky
A9: No. | C9: Description | E9: BALANCE | G9: BALANCE | I9: Removal | K9: Removal | M9: Environmental | O9: Adjustment | Q9: Property | S9: Site | U9: Property | X9: Allocated | Z9: Subtotal | AB9: Jurisdictional
E10: (A) | G10: (B) | I10: (C) | K10: (D) | M10: (E) | O10: (F) | Q10: (G) | S10: (H) | U10: (I) | X10: (L) | Z10: (M) | AB10: (N)
C11: I. Per Company
A12: 1 | C12: Long Term Debt | E12: 870000000 | G12: =E12*G20 -> 856950000 | I12: =I16*(E12/(E12+E15)) -> -87016831.49 | K12: =K16*(E12/(E12+E15)) -> -924962.2584 | M12: =M16*(E12/(E12+E15)) -> -115122144 | O12: =(O16-O13)*(E12/(E12+E15)) -> -3274643.274 | Q12: =Q16*(I12/(I12+I15)) -> -1034718.531 | S12: =S16*(K12/(K12+K15)) -> -3214831.403 | U12: =U16*(M12/(M12+M15)) -> -563636.2561 | X12: =(I12*I20)+(K12*K20)+(M12*M20)+(O12*O20)+(Q12*Q20)+(S12*S20)+(U12*U20) -> -208036912.8 | Z12: =G12+X12 -> 648913087.2 | AB12: =ROUND(Z12/$Z$16*$Z$17,0)+Z12 -> 648913758.2
A13: 2 | C13: Short Term Debt | E13: 1022872 | G13: =E13*O20 -> 1008551.792 | O13: =-E13 -> -1022872 | X13: =(I13*I20)+(K13*K20)+(M13*M20)+(O13*O20)+(Q13*Q20)+(S13*S20)+(U13*U20) -> -1008551.792 | Z13: =G13+X13 -> 0 | AB13: =ROUND(Z13/$Z$16*$Z$17,0)+Z13 -> 0
A14: 3 | C14: Accounts Receivable Financing | E14: 46807067 | G14: =E14*G20 -> 46104960.99 | I14: 0 | X14: =(I14*I20)+(K14*K20)+(M14*M20)+(O14*O20)+(Q14*Q20)+(S14*S20)+(U14*U20) -> 0 | Z14: 46104960.99 | AB14: =ROUND(Z14/$Z$16*$Z$17,0)+Z14 -> 46105008.99
A15: 4 | C15: Common Equity | E15: 666016164 | G15: =E15*G20 -> 656025921.5 | I15: =I16*(E15/(E12+E15)) -> -66614501.51 | K15: =K16*(G15/(G12+G15)) -> -708091.7416 | M15: =M16*(I15/(I12+I15)) -> -88130124.99 | O15: =(O16-O13)*(K15/(K12+K15)) -> -2506856.726 | Q15: =Q16*(M15/(M12+M15)) -> -792114.0995 | S15: =S16*(O15/(O12+O15)) -> -2461068.597 | U15: =U16*(Q15/(Q12+Q15)) -> -431483.7439 | X15: =(I15*I20)+(K15*K20)+(M15*M20)+(O15*O20)+(Q15*Q20)+(S15*S20)+(U15*U20) -> -159259708.8 | Z15: 496766212.8 | AB15: 496766725.8
A16: 5 | C16: Sub-Total | E16: =SUM(E12:E15) -> 1583846103 | G16: =SUM(G12:G15) -> 1560089434 | I16: -153631333 | K16: -1633054 | M16: -203252269 | O16: -6804372 | Q16: -1826832.63 | S16: -5675900 | U16: -995120 | X16: =SUM(X12:X15) -> -368305173.3 | Z16: =SUM(Z12:Z15) -> 1191784261 | AB16: =SUM(AB12:AB15) -> 1191785493
A17: 6 | C17: Job Development Tax Credit | E17: 1250.2 | G17: =E17*G20 -> 1231.447 | I17: 0 | K17: 0 | M17: 0 | O17: 0 | Q17: 0 | S17: 0 | U17: 0 | X17: =G17 -> 1231.447 | Z17: =X17 -> 1231.447 | AB17: 0
A18: 7 | C18: Total | E18: =E16+E17 -> 1583847353 | G18: =G16+G17 -> 1560090666 | I18: -153631333 | K18: -1633054 | M18: -203252269 | O18: -6804372 | Q18: -1826832.63 | S18: -5675900 | U18: -995120 | X18: -368303941.9 | Z18: 1191785492 | AB18: 1191785493
A20: 8 | C20: Allocation Factor | G20: 0.985 | I20: 0.985 | K20: 0.986 | M20: 0.985 | O20: 0.986 | Q20: 0.985 | S20: 1 | U20: 0.985
G21: GP-TOT | I21: PDAF | K21: EAF | M21: PDAF | O21: EAF | Q21: GP-TOT | S21: SPECIFIC | U21: GP-TOT
C23: II. Per AG
A24: 9 | C24: Long Term Debt | E24: 870000000 | G24: =E24*G32 -> 856950000 | I24: =I18*$G$50 -> -87016831.49 | K24: =K18*$G$50 -> -924962.2584 | M24: =M18*$G$50 -> -115122144 | O24: =(O18-O13)*$G$50 -> -3274643.274 | Q24: =Q18*$G$50 -> -1034718.531 | S24: =S18*$G$50 -> -3214831.403 | U24: =U18*$G$50 -> -563636.2561 | X24: =(I24*I32)+(K24*K32)+(M24*M32)+(O24*O32)+(Q24*Q32)+(S24*S32)+(U24*U32) -> -208036912.8 | Z24: =G24+X24 -> 648913087.2 | AB24: =ROUND(Z24/$Z$16*$Z$17,0)+Z24 -> 648913758.2
A25: 10 | C25: Short Term Debt | E25: 1022872 | G25: =E25*O32 -> 1008551.792 | O25: =-E25 -> -1022872 | X25: =(I25*I32)+(K25*K32)+(M25*M32)+(O25*O32)+(Q25*Q32)+(S25*S32)+(U25*U32) -> -1008551.792 | Z25: 0 | AB25: =ROUND(Z25/$Z$16*$Z$17,0)+Z25 -> 0
A26: 11 | C26: Accounts Receivable Financing | E26: 46807067 | G26: =E26*G32 -> 46104960.99 | I26: 0 | K26: 0 | M26: 0 | O26: 0 | Q26: 0 | S26: 0 | U26: 0 | X26: =(I26*I32)+(K26*K32)+(M26*M32)+(O26*O32)+(Q26*Q32)+(S26*S32)+(U26*U32) -> 0 | Z26: 46104960.99 | AB26: 46105008.99
A27: 12 | C27: Common Equity | E27: 666016164 | G27: =E27*G32 -> 656025921.5 | I27: =I18*$G$51 -> -66614501.51 | K27: =K18*$G$51 -> -708091.7416 | M27: =M18*$G$51 -> -88130124.99 | O27: =(O18-O13)*$G$51 -> -2506856.726 | Q27: =Q18*$G$51 -> -792114.0995 | S27: =S18*$G$51 -> -2461068.597 | U27: =U18*$G$51 -> -431483.7439 | X27: =(I27*I32)+(K27*K32)+(M27*M32)+(O27*O32)+(Q27*Q32)+(S27*S32)+(U27*U32) -> -159259708.8 | Z27: 496766212.8 | AB27: 496766725.8
A28: 13 | C28: Sub-Total | E28: =SUM(E24:E27) -> 1583846103 | G28: =SUM(G24:G27) -> 1560089434 | I28: =SUM(I24:I27) -> -153631333 | K28: =SUM(K24:K27) -> -1633054 | M28: =SUM(M24:M27) -> -203252269 | O28: =SUM(O24:O27) -> -6804372 | Q28: =SUM(Q24:Q27) -> -1826832.63 | S28: =SUM(S24:S27) -> -5675900 | U28: =SUM(U24:U27) -> -995120 | X28: =SUM(X24:X27) -> -368305173.3 | Z28: =SUM(Z24:Z27) -> 1191784261 | AB28: =SUM(AB24:AB27) -> 1191785493
A29: 14 | C29: Job Development Tax Credit | E29: 1250.2 | G29: =E29*G32 -> 1231.447 | I29: 0 | K29: 0 | M29: 0 | O29: 0 | Q29: 0 | S29: 0 | U29: 0 | X29: =G29 -> 1231.447 | Z29: =X29 -> 1231.447 | AB29: 0
A30: 15 | C30: Total | E30: =SUM(E28:E29) -> 1583847353 | G30: =SUM(G28:G29) -> 1560090666 | I30: =SUM(I28) -> -153631333 | K30: =SUM(K28) -> -1633054 | M30: =SUM(M28) -> -203252269 | O30: =SUM(O28) -> -6804372 | Q30: =SUM(Q28) -> -1826832.63 | S30: =SUM(S28) -> -5675900 | U30: =SUM(U28) -> -995120 | X30: =SUM(X28:X29) -> -368303941.9 | Z30: =SUM(Z28:Z29) -> 1191785492 | AB30: =SUM(AB28) -> 1191785493
A32: 16 | C32: Allocation Factor | G32: 0.985 | I32: 0.985 | K32: 0.986 | M32: 0.985 | O32: 0.986 | Q32: 0.985 | S32: 1 | U32: 0.985
G33: GP-TOT | I33: PDAF | K33: EAF | M33: PDAF | O33: EAF | Q33: GP-TOT | S33: SPECIFIC | U33: GP-TOT
A37: Notes and Source
A38: Amounts above from Section V, Exhibit 1, Schedule 3 from the Company's filing
A39: Col. C: | C39: The Company's allocation creates a negative balance of short term debt, which does not exist
C40: The AG's allocation uses the ratios of the per book balances of Long Term Debt and Common Equity, and preserves the per book balance of Accounts Receivable Financing
A41: * The amounts in Column L were multiplied by the Kentucky jurisdictional allocation factor for Gross Plant - Total which is | M41: 0.989
A44: WORKPAPER
A45: Do not print below this line | C45: - Line 15 above
I46: -153631333 | K46: -1633054 | M46: -203252269 | O46: -6804372 | Q46: -1826832.63 | S46: -5675900 | U46: -995120 | X46: -368305173.3
I48: =I30-I46 -> 0
A49: WORKPAPER
C50: Long Term Debt | E50: =E12 -> 870000000 | G50: =E50/$E$52 -> 0.5664002895 | I50: =I$18*$G50 -> -87016831.49 | K50: =K$18*$G50 -> -924962.2584 | M50: =M$18*$G50 -> -115122144 | O50: =O$18*$G50 -> -3853998.271 | Q50: =Q$18*$G50 -> -1034718.531 | S50: =S$18*$G50 -> -3214831.403 | U50: =U$18*$G50 -> -563636.2561 | X50: =SUM(I50:V50)+E50 -> 658268877.8
C51: Common Equity | E51: =E15 -> 666016164 | G51: =E51/$E$52 -> 0.4335997105 | I51: =I$18*$G51 -> -66614501.51 | K51: =K$18*$G51 -> -708091.7416 | M51: =M$18*$G51 -> -88130124.99 | O51: =O$18*$G51 -> -2950373.729 | Q51: =Q$18*$G51 -> -792114.0995 | S51: =S$18*$G51 -> -2461068.597 | U51: =U$18*$G51 -> -431483.7439 | X51: =SUM(I51:V51)+E51 -> 503928405.6
C52: Total | E52: =SUM(E50:E51) -> 1536016164 | G52: =SUM(G50:G51) -> 1 | I52: =SUM(I50:I51) -> -153631333 | K52: =SUM(K50:K51) -> -1633054 | M52: =SUM(M50:M51) -> -203252269 | O52: =SUM(O50:O51) -> -6804372 | Q52: =SUM(Q50:Q51) -> -1826832.63 | S52: =SUM(S50:S51) -> -5675900 | U52: =SUM(U50:U51) -> -995120

Sheet D P3
A1: =Contents!A1 -> Kentucky Power Company | O1: =Contents!A3 -> Exhibit RCS-1
A2: Capital Structure and Cost Rates | O2: Schedule D
O3: =Contents!A2 -> Case No. 2017-00179
A4: =A!A4 -> Test Year Ended February 28, 2017 | O4: Page 3 of 3
O6: Reapportioned
E7: Reapportioned | G7: Cash | O7: Kentucky
E8: Kentucky | G8: Working | O8: Jurisdictional
A9: Line | E9: Jurisdictional | G9: Capital* | M9: Total AG | O9: Capitalization
A10: No. | C10: Description | E10: Capitalization | G10: B-1 | I10: B-2 | K10: B-3 | M10: Adjustments | O10: Per AG
E11: (A) | G11: (B) | I11: (C) | K11: (D) | M11: (E) | O11: (F=A+E)
A13: 1 | C13: Long Term Debt | E13: ='D P2'!AB24 -> 648913758.2 | G13: =G19*$G$34 -> 0 | I13: =I19*$G$34 -> 0 | K13: =ROUND(E13/E19*K19,0) -> 0 | M13: =SUM(G13:L13) -> 0 | O13: =E13+M13 -> 648913758.2
A14: 2 | C14: Short Term Debt | E14: ='D P2'!AB25 -> 0 | K14: =ROUND((E14+E15)/E19*K19,0) -> 0 | M14: =SUM(G14:L14) -> 0 | O14: =E14+M14 -> 0
A15: 3 | C15: Accounts Receivable Financing | E15: ='D P2'!AB26 -> 46105008.99 | G15: 0 | I15: 0 | M15: =SUM(G15:L15) -> 0 | O15: =E15+M15 -> 46105008.99
A16: 4 | C16: Common Equity | E16: ='D P2'!AB27 -> 496766725.8 | G16: =G19*$G$35 -> 0 | I16: =I19*$G$35 -> 0 | K16: =ROUND(E16/E19*K19,0) -> 0 | M16: =SUM(G16:L16) -> 0 | O16: =E16+M16 -> 496766725.8
A17: 5 | C17: Sub-Total | E17: =SUM(E13:E16) -> 1191785493 | G17: =SUM(G13:G16) -> 0 | I17: =SUM(I13:I16) -> 0 | K17: =SUM(K13:K16) -> 0 | M17: =SUM(M13:M16) -> 0 | O17: =SUM(O13:O16) -> 1191785493
A18: 6 | C18: Job Development Tax Credit | E18: 0
A19: 7 | C19: Total | E19: =SUM(E17:E18) -> 1191785493 | G19: 0 | I19: 0 | M19: =SUM(G19:L19) -> 0 | O19: =O17 -> 1191785493
A23: Notes and Source
A24: Col. A: See page 2, Column N, lines 8-14
A26: * Capitalization is not adjusted for cash working capital
C30: Do not print below this line
A33: WORKPAPER | E33: from page 2 Col. A
C34: Long Term Debt | E34: ='D P2'!$E$50 -> 870000000 | G34: =E34/$E$36 -> 0.5664002895 | I34: ='D P2'!G50 -> 0.5664002895 | K34: =G34-I34 -> 0
C35: Common Equity | E35: ='D P2'!$E$51 -> 666016164 | G35: =E35/$E$36 -> 0.4335997105 | I35: ='D P2'!G51 -> 0.4335997105 | K35: =G35-I35 -> 0
C36: Total | E36: =SUM(E34:E35) -> 1536016164 | G36: =SUM(G34:G35) -> 1

Sheet B-1
A1: =Contents!A1 -> Kentucky Power Company | I1: =Contents!$Q$4 -> Exhibit RCS-1
A2: Cash Working Capital | I2: Schedule B-1
I3: =Contents!A2 -> Case No. 2017-00179
A4: =A!A4 -> Test Year Ended February 28, 2017 | I4: Page 1 of 2
E7: Per KPCo | I7: AG
A8: Line | E8: KY Jurisdictional | G8: AG | I8: Adjusted
A9: No. | C9: Description | E9: Amount | G9: Adjustments | I9: Amount
E10: (A) | G10: (B) | I10: (C)
A12: 1 | C12: Total Power Production Expense | E12: 47793226 | I12: =E12+G12 -> 47793226
A13: =A12+1 -> 2 | C13: Total Transmission Expense | E13: 37469103.4 | I13: =E13+G13 -> 37469103.4
A14: =A13+1 -> 3 | C14: Total Distribution Expense | E14: 43904348.07 | I14: 43904348.07
A15: 4 | C15: Total Customer Related Expense | E15: 6698024.907 | I15: 6698024.907
A16: 5 | C16: Total Administrative & General Expense | E16: 21691531.07 | I16: 21691531.07
A17: 6 | C17: AG Adjustments | G17: ='B-1, P2'!I28 -> -5924390 | I17: -5924390
A18: 7 | C18: Subtotal | E18: =SUM(E12:E17) -> 157556233.4 | G18: =SUM(G12:G17) -> -5924390 | H18: 0 | I18: 151631843.4
A19: 8 | C19: 1/8 Formula Percentage | E19: 0.125 | G19: 0.125 | I19: 0.125
A20: 9 | C20: Cash Working Capital | E20: =ROUND(E18*E19,0) -> 19694529 | G20: =ROUND(G18*G19,0) -> -740549 | I20: =ROUND(I18*I19,0) -> 18953980
A25: Notes and Source
A26: Col. A: Amounts from KPSC-1-73, Supplemental Attachment 3 for Section V Schedules
A27: Col. B: See page 2

Sheet B-1, P2
A1: =Contents!A1 -> Kentucky Power Company | I1: =Contents!A3 -> Exhibit RCS-1
A2: Cash Working Capital - AG Adjustments to Expenses | I2: Schedule B-1
I3: =Contents!A2 -> Case No. 2017-00179
A4: =A!A4 -> Test Year Ended February 28, 2017 | I4: Page 2 of 2
I7: O&M
A8: Line | E8: Adjustment | G8: Expense | I8: Expense
A9: No. | C9: Description | E9: No. | G9: Adjustments | I9: in CWC
G10: (A) | I10: (B)
A12: 1 | C12: =Contents!B25 -> Theft Recovery Revenue | E12: =Contents!A25 -> C-1 | G12: =C.1!G18 -> 0
A13: =A12+1 -> 2 | C13: =Contents!B26 -> Payroll Expense - Employee Merit Increase | E13: =Contents!A26 -> C-2 | G13: =C.1!H18 -> -57205 | I13: =G13 -> -57205
A14: =A13+1 -> 3 | C14: =Contents!B27 -> Overtime Payroll Expense Related to Employee Merit Increase | E14: =Contents!A27 -> C-3 | G14: =C.1!I18 -> -4148 | I14: -4148
A15: 4 | C15: =Contents!B28 -> Payroll Tax Expense | E15: =Contents!A28 -> C-4 | G15: =C.1!J18 -> -48362 | I15: 0
A16: 5 | C16: =Contents!B29 -> Incentive Compensation Expense | E16: =Contents!A29 -> C-5 | G16: =C.1!K18 -> -1350120 | I16: -1350120
A17: 6 | C17: =Contents!B30 -> Stock-Based Compensation | E17: =Contents!A30 -> C-6 | G17: =C.1!L18 -> -1746748 | I17: -1746748
A18: 7 | C18: =Contents!B31 -> Savings Plan Expense | E18: =Contents!A31 -> C-7 | G18: =C.1!M18 -> -1102496 | I18: =G18 -> -1102496
A19: 8 | C19: =Contents!B32 -> Supplemental Executive Retirement Program ("SERP") Expense | E19: =Contents!A32 -> C-8 | G19: =C.1!N18 -> -58726 | I19: -58726
A20: 9 | C20: =Contents!B33 -> Affiliate Charges for Corporate Aviation Expense | E20: =Contents!A33 -> C-9 | G20: =C.1!O18 -> -382769 | I20: -382769
A21: 10 | C21: =Contents!B34 -> Storm Damage Expense | E21: =Contents!A34 -> C-10 | G21: =C.1!P18 -> -595932 | I21: -595932
A22: 11 | C22: =Contents!B35 -> Relocation Expense | E22: =Contents!A35 -> C-11 | G22: =C.1!Q18 -> -140972 | I22: -140972
A23: 12 | C23: =Contents!B36 -> Gain on Sale of Utility Property | E23: =Contents!A36 -> C-12 | G23: =C.1!R18 -> -327240 | I23: 0
A24: 13 | C24: =Contents!B37 -> Cash Surrender Value of Life Insurance Policies | E24: =Contents!A37 -> C-13 | G24: =C.1!S18 -> -26941 | I24: -26941
A25: 14 | C25: =Contents!B38 -> Interest Synchronization | E25: =Contents!A38 -> C-14 | G25: =C.1!T18 -> 0 | I25: 0
A26: 15 | C26: =Contents!B39 -> Rate Case Expense | E26: =Contents!A39 -> C-15 | G26: =C.1!U18 -> -458333 | I26: -458333
A27: =A26+1 -> 16
A28: =A27+1 -> 17 | C28: TOTAL | G28: =SUM(G12:G27) -> -6299992 | I28: =SUM(I12:I27) -> -5924390
A29: =A28+1 -> 18 | C29: Total per Schedule C.1, line 5 | G29: =C.1!E18 -> -6299992
A30: =A29+1 -> 19 | C30: Difference | G30: =G28-G29 -> 0
C32: Reconciliation
A33: =A30+1 -> 20 | C33: Current Income Taxes from Schedule C.1 | G33: =C.1!E25 -> 2510255.525
A34: =A33+1 -> 21 | C34: Total operating expense adjustments (L15 +L18) | G34: =G28+G33 -> -3789736.475
A35: =A34+1 -> 22 | C35: Total operating expense adjustments from Sch C.1, line 12 | G35: =C.1!E26 -> -3789736.475
A36: =A35+1 -> 23 | C36: Difference | G36: =G34-G35 -> 0
A38: This workpaper shows how the AG adjustments to operating expenses from Schedule C.1 are posted for CWC purposes.

Sheet C-1
A1: =Contents!A1 -> Kentucky Power Company | G1: =Contents!A3 -> Exhibit RCS-1
A2: Theft Recovery Revenue | G2: Schedule C-1
G3: =Contents!A2 -> Case No. 2017-00179
A4: =A!A4 -> Test Year Ended February 28, 2017 | G4: Page 1 of 1
E6: Kentucky
A7: Line | E7: Jurisdictional
A8: No. | C8: Description | E8: Amount | G8: Reference
E9: (A)
A11: 1 | C11: Adjustment to Increase Revenue Related to Theft Recovery | E11: 166697.5 | G11: A
A12: 2 | C12: Kentucky Jurisdictional Allocation Factor - SPECIFIC | E12: 1
A13: 3 | C13: Kentucky Jurisdictional Adjustment to Increase Revenue Related to Theft Recovery | E13: =E11*E12 -> 166697.5
A16: Notes and Source
A17: A: Amount from the response to AG-1-319

Sheet C-2
A1: =Contents!A1 -> Kentucky Power Company | S1: =Contents!A3 -> Exhibit RCS-1
A2: Payroll Expense - Employee Merit Increase | S2: Schedule C-2
S3: =Contents!A2 -> Case No. 2017-00179
A4: =A!A4 -> Test Year Ended February 28, 2017 | S4: Page 1 of 1
E6: Remaining Months in Proforma Year
G7: Transmission | J7: Distribution | M7: Generation
H8: Prorated Merit Increases | K8: Prorated Merit Increases | P8: Billed to Affiliated | S8: Prorated Merit Increases
G9: Amount | J9: Amount | P9: Companies | R9: Amount
A10: Line | G10: to be Prorated | J10: to be Prorated | M10: Amount to be Prorated | P10: Kammer | Q10: Mitchell | R10: to be Prorated
A11: No. | C11: Description | M11: Total | N11: Kammer | O11: Mitchell | P11: 1 | Q11: 0.5
C12: (A) | E12: (B) | G12: (C) | H12: (D) | J12: (E) | K12: (F) | M12: (G) | N12: (H) | O12: (I) | P12: (J) | Q12: (K) | R12: (L) | S12: (M)
H13: (C * B/12) | K13: (E * B/12) | P13: (H * 100%) | Q13: (I * 50%) | R13: (G -J - K) | S13: (L * B/12)
A14: 1 | B14: Exempt Salaried | E14: 1
A15: =A14+1 -> 2 | C15: January | E15: 12 | H15: =ROUND((E15/12)*G15,0) -> 0 | K15: =ROUND((E15/12)*J15,0) -> 0 | P15: =ROUND(N15*P$11,0) -> 0 | Q15: 0 | R15: =+M15-P15-Q15 -> 0 | S15: =ROUND((E15/12)*R15,0) -> 0
A16: =A15+1 -> 3 | C16: February | E16: 12 | H16: 0 | K16: 0 | P16: 0 | Q16: 0 | R16: 0 | S16: 0
A17: 4 | C17: March | E17: 12 | H17: 0 | K17: 0 | P17: 0 | Q17: 0 | R17: 0 | S17: 0
A18: 5 | C18: April | E18: 11 | G18: 1799.99 | H18: 1650 | J18: 200477.2 | K18: 183771 | M18: 295869.75 | N18: 11258.68 | O18: 225553.39 | P18: =ROUND(N18*P$11,0) -> 11259 | Q18: =ROUND(O18*Q$11,0) -> 112777 | R18: =+M18-P18-Q18 -> 171833.75 | S18: 157514
A19: 6 | C19: May | E19: 10 | H19: 0 | K19: 0 | P19: 0 | Q19: 0 | R19: 0 | S19: 0
A20: 7 | C20: June | E20: 9 | H20: 0 | K20: 0 | P20: 0 | Q20: 0 | R20: 0 | S20: 0
A21: 8 | C21: July | E21: 8 | H21: 0 | K21: 0 | P21: 0 | Q21: 0 | R21: 0 | S21: 0
A22: 9 | C22: August | E22: 7 | H22: 0 | K22: 0 | P22: 0 | Q22: 0 | R22: 0 | S22: 0
A23: 10 | C23: September | E23: 6 | H23: 0 | K23: 0 | P23: 0 | Q23: 0 | R23: 0 | S23: 0
A24: 11 | C24: October | E24: 5 | H24: 0 | K24: 0 | P24: 0 | Q24: 0 | R24: 0 | S24: 0
A25: 12 | C25: November | E25: 4 | H25: 0 | K25: 0 | P25: 0 | Q25: 0 | R25: 0 | S25: 0
A26: 13 | C26: December | E26: 3 | H26: 0 | K26: 0 | P26: 0 | Q26: 0 | R26: 0 | S26: 0
A27: 14 | C27: Total | H27: =SUM(H15:H26) -> 1650 | K27: =SUM(K15:K26) -> 183771 | S27: =SUM(S15:S26) -> 157514
A29: =A27+1 -> 15 | B29: Nonexempt Hourly
A30: =A29+1 -> 16 | C30: January | E30: 12 | H30: =ROUND(($E15/12)*G30,0) -> 0 | K30: =ROUND(($E15/12)*J30,0) -> 0 | P30: =ROUND(N30*P$11,0) -> 0 | Q30: 0 | R30: =+M30-P30-Q30 -> 0 | S30: =ROUND(($E15/12)*R30,0) -> 0
A31: =A30+1 -> 17 | C31: February | E31: 12 | H31: 0 | K31: 0 | P31: 0 | Q31: 0 | R31: 0 | S31: =ROUND(($E16/12)*R31,0) -> 0
A32: 18 | C32: March | E32: 12 | H32: 0 | K32: 0 | P32: 0 | Q32: 0 | R32: 0 | S32: =ROUND((E17/12)*R32,0) -> 0
A33: 19 | C33: April | E33: 11 | H33: 0 | J33: 3709.68 | K33: 3401 | P33: 0 | Q33: 0 | R33: 0 | S33: 0
A34: 20 | C34: May | E34: 10 | H34: 0 | J34: 371860.32 | K34: 309884 | M34: 91403.52 | P34: 0 | Q34: 0 | R34: 91403.52 | S34: 76170
A35: 21 | C35: June | E35: 9 | H35: 0 | K35: 0 | M35: 601596.32 | O35: 601596.32 | P35: 0 | Q35: 300798 | R35: 300798.32 | S35: 225599
A36: 22 | C36: July | E36: 8 | H36: 0 | K36: 0 | P36: 0 | Q36: 0 | R36: 0 | S36: 0
A37: 23 | C37: August | E37: 7 | H37: 0 | K37: 0 | P37: 0 | Q37: 0 | R37: 0 | S37: 0
A38: 24 | C38: September | E38: 6 | H38: 0 | K38: 0 | P38: 0 | Q38: 0 | R38: 0 | S38: 0
A39: 25 | C39: October | E39: 5 | H39: 0 | K39: 0 | P39: 0 | Q39: 0 | R39: 0 | S39: 0
A40: 26 | C40: November | E40: 4 | H40: 0 | K40: 0 | P40: 0 | Q40: 0 | R40: 0 | S40: 0
A41: 27 | C41: December | E41: 3 | H41: 0 | K41: 0 | P41: 0 | Q41: 0 | R41: 0 | S41: 0
A42: 28 | C42: Total | H42: =SUM(H30:H41) -> 0 | K42: =SUM(K30:K41) -> 313285 | S42: =SUM(S30:S41) -> 301769
A44: =A42+1 -> 29 | B44: Salaried Nonexempt
A45: =A44+1 -> 30 | C45: January | E45: 12 | H45: =ROUND(($E15/12)*G45,0) -> 0 | K45: =ROUND(($E15/12)*J45,0) -> 0 | P45: =ROUND(N45*P$11,0) -> 0 | Q45: 0 | R45: =+M45-P45-Q45 -> 0 | S45: =ROUND((E15/12)*R45,0) -> 0
A46: =A45+1 -> 31 | C46: February | E46: 12 | H46: 0 | K46: 0 | P46: 0 | Q46: 0 | R46: 0 | S46: 0
A47: 32 | C47: March | E47: 12 | H47: 0 | K47: 0 | P47: 0 | Q47: 0 | R47: 0 | S47: 0
A48: 33 | C48: April | E48: 11 | H48: 0 | J48: 137459.83 | K48: 126005 | M48: 11906.45 | O48: 10452 | P48: 0 | Q48: 5226 | R48: 6680.45 | S48: 6124
A49: 34 | C49: May | E49: 10 | H49: 0 | J49: 3759.6 | K49: =ROUND(($E19/12)*J49,0) -> 3133 | P49: 0 | Q49: 0 | R49: 0 | S49: 0
A50: 35 | C50: June | E50: 9 | H50: 0 | K50: 0 | P50: 0 | Q50: 0 | R50: 0 | S50: 0
A51: 36 | C51: July | E51: 8 | H51: 0 | K51: 0 | P51: 0 | Q51: 0 | R51: 0 | S51: 0
A52: 37 | C52: August | E52: 7 | H52: 0 | K52: 0 | P52: 0 | Q52: 0 | R52: 0 | S52: 0
A53: 38 | C53: September | E53: 6 | H53: 0 | K53: 0 | P53: 0 | Q53: 0 | R53: 0 | S53: 0
A54: 39 | C54: October | E54: 5 | H54: 0 | K54: 0 | P54: 0 | Q54: 0 | R54: 0 | S54: 0
A55: 40 | C55: November | E55: 4 | H55: 0 | K55: 0 | P55: 0 | Q55: 0 | R55: 0 | S55: 0
A56: 41 | C56: December | E56: 3 | H56: 0 | K56: 0 | P56: 0 | Q56: 0 | R56: 0 | S56: 0
A57: 42 | C57: Total | H57: =SUM(H45:H56) -> 0 | K57: =SUM(K45:K56) -> 129138 | S57: =SUM(S45:S56) -> 6124
A59: =1+A57 -> 43 | B59: 2017 KPCo Increases | G59: =SUM(G15:G58) -> 1799.99 | J59: =SUM(J15:J58) -> 717266.63 | Q59: =SUM(Q15:Q58) -> 418801 | R59: =SUM(R15:R58) -> 570716.04
H61: Transmission | K61: Distribution | S61: Generation
A62: =1+A59 -> 44 | B62: Prorated Merit Increases
A63: =1+A62 -> 45 | B63: Exempt | H63: =+H27 -> 1650 | K63: =+K27 -> 183771 | S63: =+S27 -> 157514
A64: =1+A63 -> 46 | B64: Nonexempt | H64: =+H42 -> 0 | K64: =+K42 -> 313285 | S64: =+S42 -> 301769
A65: =1+A64 -> 47 | B65: Salaried Nonexempt | H65: =+H57 -> 0 | K65: =+K57 -> 129138 | S65: =+S57 -> 6124
A66: =1+A65 -> 48 | B66: Merit Adjustment of Base Payroll | H66: =SUM(H63:H65) -> 1650 | K66: =SUM(K63:K65) -> 626194 | S66: =SUM(S63:S65) -> 465407
A68: =1+A66 -> 49 | C68: Total KPCo Adjustment to Increase Payroll Cost for Merit Adjustment Per AG | S68: =SUM(H66:S66) -> 1093251
A69: =A68+1 -> 50 | C69: Total KPCo Adjustment to Increase Payroll Cost for Merit Adjustment Per KPCo | S69: 1174517
A70: =A69+1 -> 51 | C70: AG Adjustment to Payroll Expense | S70: =S68-S69 -> -81266
A71: 52 | C71: KPCo O&M Percentage | S71: 0.7096
A72: =1+A71 -> 53 | C72: Adjustment to Increase O&M Expense for Merit Increases | S72: =ROUND(S70*S71,0) -> -57666
A73: =1+A72 -> 54 | C73: Kentucky Jurisdictional Allocation Factor | S73: 0.992
A74: =1+A73 -> 55 | C74: Kentucky Jurisdictional Adjustment to O&M Payroll Expense for Merit Increases | S74: =ROUND(S72*S73,0) -> -57205
A76: Notes and Source
A77: Cols. A-I: Employee merit increase amounts calculated using a 3% wage increase for Exempt Salaried and Salaried Non-Exempt employees

Sheet C-3
A1: =Contents!A1 -> Kentucky Power Company | L1: =Contents!A3 -> Exhibit RCS-1
A2: Overtime Payroll Expense Related to Employee Merit Increase | L2: Schedule C-3
L3: =Contents!A2 -> Case No. 2017-00179
A4: =A!A4 -> Test Year Ended February 28, 2017 | L4: Page 1 of 1
A6: Line | I6: Generation
A7: No. | C7: Description | E7: Transmission | G7: Distribution | I7: Big Sandy | J7: Mitchell | L7: Adjustment
E8: (A) | G8: (B) | I8: (C) | J8: (D) | L8: (E)
C9: Test Year Overtime Cost
A10: =1+A9 -> 1 | C10: Exempt | E10: 1875 | G10: 127326 | I10: 208694 | J10: 405145
A11: =1+A10 -> 2 | C11: Nonexempt | E11: 0 | G11: 2062000 | I11: 690170 | J11: 2634643
A12: =1+A11 -> 3 | C12: Salaried Nonexempt | E12: 0 | G12: 753224 | I12: 26681 | J12: 27886
A13: =A12+1 -> 4 | C13: Total Test Year Overtime Cost | E13: =SUM(E10:E12) -> 1875 | G13: =SUM(G10:G12) -> 2942550 | I13: =SUM(I10:I12) -> 925545 | J13: =SUM(J10:J12) -> 3067674
C15: Remove 50% of Mitchell
A16: =A13+1 -> 5 | C16: Exempt | J16: =-ROUND(J10*0.5,0) -> -202573
A17: =1+A16 -> 6 | C17: Nonexempt | J17: =-ROUND(J11*0.5,0) -> -1317322
A18: 7 | C18: Salaried Nonexempt | J18: =-ROUND(J12*0.5,0) -> -13943
A19: =A18+1 -> 8 | C19: Total Overtime Removed for Mitchell | J19: =SUM(J16:J18) -> -1533838
C21: Net Test Year Overtime Cost
A22: =A19+1 -> 9 | C22: Exempt | E22: =E10+E16 -> 1875 | G22: =G10+G16 -> 127326 | I22: =I10+I16 -> 208694 | J22: 202572
A23: 10 | C23: Nonexempt | E23: =E11+E17 -> 0 | G23: =G11+G17 -> 2062000 | I23: 690170 | J23: 1317321
A24: 11 | C24: Salaried Nonexempt | E24: =E12+E18 -> 0 | G24: =G12+G18 -> 753224 | I24: 26681 | J24: 13943
A25: =A24+1 -> 12 | C25: Total Net Test Year Overtime Cost | E25: =SUM(E22:E24) -> 1875 | G25: =SUM(G22:G24) -> 2942550 | I25: =SUM(I22:I24) -> 925545 | J25: =SUM(J22:J24) -> 1533836
C27: Percent Merit Increases
A28: =A25+1 -> 13 | C28: Exempt | E28: 0.03 | G28: 0.03 | I28: 0.03 | J28: 0.03
A29: 14 | C29: Nonexempt | G29: 0.05 | I29: 0.05 | J29: 0.05
A30: 15 | C30: Salaried Nonexempt | G30: 0.03 | I30: 0.03 | J30: 0.03
C32: Estimated 2017 Overtime Cost Increase
A33: =A30+1 -> 16 | C33: Exempt | E33: =ROUND(E22*E28,0) -> 56 | G33: =ROUND(G22*G28,0) -> 3820 | I33: =ROUND(I22*I28,0) -> 6261 | J33: 6077
A34: 17 | C34: Nonexempt | E34: =ROUND(E23*E29,0) -> 0 | G34: =ROUND(G23*G29,0) -> 103100 | I34: 34509 | J34: 65866
A35: 18 | C35: Salaried Nonexempt | E35: =ROUND(E24*E30,0) -> 0 | G35: =ROUND(G24*G30,0) -> 22597 | I35: 800 | J35: 418
A36: 19 | C36: KPCo Estimated Annual Increased Overtime Cost | E36: =SUM(E33:E35) -> 56 | G36: =SUM(G33:G35) -> 129517 | I36: =SUM(I33:I35) -> 41570 | J36: =SUM(J33:J35) -> 72361
C38: Prorate Overtime Increase
A39: =A36+1 -> 20 | C39: Prorated Merit Increases | E39: 1925 | G39: 679912 | I39: 113696 | J39: 378984
A40: 21 | C40: KPCo Merit Increases to be Prorated | E40: 2099.98915 | G40: 776095.8723 | I40: 162001.0794 | J40: 438468
A41: 22 | C41: Prorated Portion of Increase in (Ln 15 / Ln 16) | E41: =ROUND(E39/E40,4) -> 0.9167 | G41: =ROUND(G39/G40,4) -> 0.8761 | I41: =ROUND(I39/I40,4) -> 0.7018 | J41: =ROUND(J39/J40,4) -> 0.8643
A44: =A41+1 -> 23 | C44: Prorated Overtime Increase Per AG | E44: =ROUND(E41*E36,0) -> 51 | G44: =ROUND(G41*G36,0) -> 113470 | I44: =ROUND(I41*I36,0) -> 29174 | J44: =ROUND(J41*J36,0) -> 62542 | L44: =SUM(E44:K44) -> 205237
A45: 24 | C45: Prorated Overtime Increase Per KPCo | L45: 211129
A46: =A45+1 -> 25 | C46: AG Adjustment to Overtime Payroll Expense | L46: =L44-L45 -> -5892
A47: =A46+1 -> 26 | C47: KPCo O&M Percentage | L47: 0.7096
A48: 27 | C48: Adjustment to Increase O&M Expenses for Overtime Impact of Merit Increases | L48: =ROUND(L46*L47,0) -> -4181
A49: 28 | C49: Kentucky Jurisdictional Allocation Factor | L49: 0.992
A50: 29 | C50: Kentucky Jurisdictional Adjustment to O&M Overtime Payroll Expense for Merit Increases | L50: =ROUND(L48*L49,0) -> -4148
A52: Notes and Source
A53: Columns A-D (lines 1-12) from Section V, Exhibit 2, page 35, Adjustment No. W34 from KPCo filing

Sheet C-4
A1: =Contents!A1 -> Kentucky Power Company | G1: =Contents!A3 -> Exhibit RCS-1
A2: Payroll Tax Expense | G2: Schedule C-4
G3: =Contents!A2 -> Case No. 2017-00179
A4: =A!A4 -> Test Year Ended February 28, 2017 | G4: Page 1 of 3
A6: Line
A7: No. | C7: Description | E7: Amount | G7: Reference
E8: (A)
C9: Social Security
A10: 1 | C10: Kentucky Jurisdictional Adjustment to O&M Payroll Expense for Employee Merit Increases | E10: ='C-2'!S74 -> -57205 | G10: A
A11: =A10+1 -> 2 | C11: Kentucky Jurisdictional Adjustment to O&M Overtime Payroll Expense for Employee Merit Increases | E11: ='C-3'!L50 -> -4148 | G11: B
A12: =A11+1 -> 3 | C12: Total Adjustment to Payroll Expense | E12: =SUM(E10:E11) -> -61353
A13: 4 | C13: FICA Social Security Rate | E13: 0.062
A14: 5 | C14: Adjustment to FICA Social Security | E14: =ROUND(E12*E13,0) -> -3804
A15: 6 | C15: Adjustment to FICA Social Security for Directly Incurred O&M Incentive Compensation Expense | E15: ='C-4 P2'!E20 -> -30672 | G15: Page 2
A16: 7 | C16: Adjustment to FICA Social Security for Directly Incurred O&M Stock-Based Compensation Expense | E16: ='C-4 P3'!E18 -> -13217 | G16: Page 3
A17: 8 | C17: Total Adjustment to FICA Social Security | E17: =SUM(E14:E16) -> -47693
C19: Medicare
A20: =A14+1 -> 6 | C20: Kentucky Jurisdictional Adjustment to O&M Payroll Expense for Employee Merit Increases | E20: =E10 -> -57205 | G20: A
A21: =A20+1 -> 7 | C21: Kentucky Jurisdictional Adjustment to O&M Overtime Payroll Expense for Employee Merit Increases | E21: =E11 -> -4148 | G21: B
A22: =A21+1 -> 8 | C22: Adjustment to FICA Medicare for Directly Incurred O&M Incentive Compensation Expense | E22: ='C-4 P2'!E29 -> -8177 | G22: Page 2
A23: 9 | C23: Kentucky Jurisdictional Directly Incurred O&M Stock-Based Compensation Expense Allocated to Shareholders | E23: ='C-4 P3'!E25 -> -3524 | G23: Page 3
A24: 10 | C24: Total Adjustments to Payroll and Incentive and Stock-Based Compensation Expense | E24: =SUM(E20:E23) -> -73054
A25: =A24+1 -> 11 | C25: FICA Medicare Rate | E25: 0.0145
A26: =A25+1 -> 12 | C26: Total Adjustment to FICA Medicare | E26: =ROUND(E24*E25,0) -> -1059
A28: =A26+1 -> 13 | C28: Total Adjustment to Payroll Tax Expense | E28: =E17+E26 -> -48752 | G28: L8 + L12
A29: =A28+1 -> 14 | C29: Kentucky Jurisdictional Allocation Factor | E29: 0.992
A30: =A29+1 -> 15 | C30: Kentucky Jurisdictional Adjustment to Payroll Tax Expense | E30: =ROUND(E28*E29,0) -> -48362
A33: Notes and Source
A34: A: See Schedule C-2
A35: B: See Schedule C-3

Sheet C-4 P2
A1: =Contents!A1 -> Kentucky Power Company | G1: =Contents!A3 -> Exhibit RCS-1
A2: Payroll Tax Expense - Incentive Compensation | G2: Schedule C-4
G3: =Contents!A2 -> Case No. 2017-00179
A4: =A!A4 -> Test Year Ended February 28, 2017 | G4: Page 2 of 3
A6: Line
A7: No. | C7: Description | E7: Amount | G7: Reference
E8: (A)
C9: Social Security
A10: 1 | C10: KPCo Proposed Level of Directly Incurred O&M Incentive Compensation in Cost of Service | E10: ='C-5'!E19 -> 2273952 | G10: Schedule C-5, Line 2
A11: =A10+1 -> 2 | C11: Performance Measure Based on Financial Objectives | E11: 0.25 | G11: KPSC-1-66
A12: =A11+1 -> 3 | C12: Directly Incurred O&M Incentive Compensation Expense Allocated to Shareholders Per AG | E12: =-ROUND(E10*E11,0) -> -568488
A13: 4 | C13: Kentucky Jurisdictional Allocation Factor | E13: 0.992 | G13: Section V, Exhibit 2, Adjustment No. W32
A14: 5 | C14: Kentucky Jurisdictional Directly Incurred O&M Incentive Compensation Expense Allocated to Shareholders | E14: =ROUND(E12*E13,0) -> -563940
A15: 6 | C15: Ratio of employees earning more than $127,200 limit in 2017 | E15: =E42 -> 0.1227598566 | G15: Line 25
A16: 7 | C16: Kentucky Jurisdictional Directly Incurred O&M Incentive Compensation Expense for Employees Earning more than the $127,200 Limit | E16: =-ROUND(E14*E15,0) -> 69229 | G16: L5 x L6
A18: =A16+1 -> 8 | C18: Kentucky Jurisdictional Directly Incurred O&M Incentive Compensation Expense for Employees Earning up to the $127,200 Limit | E18: =E14+E16 -> -494711 | G18: L5 + L7
A19: 9 | C19: FICA Social Security Rate | E19: 0.062
A20: 10 | C20: Adjustment to FICA Social Security for Directly Incurred O&M Incentive Compensation Expense | E20: =ROUND(E18*E19,0) -> -30672
C22: Medicare
A23: =A20+1 -> 11 | C23: KPCo Proposed Level of Directly Incurred O&M Incentive Compensation in Cost of Service | E23: =E10 -> 2273952
A24: =A23+1 -> 12 | C24: Performance Measure Based on Financial Objectives | E24: 0.25
A25: =A24+1 -> 13 | C25: Directly Incurred O&M Incentive Compensation Expense Allocated to Shareholders Per AG | E25: =-ROUND(E23*E24,0) -> -568488
A26: 14 | C26: Kentucky Jurisdictional Allocation Factor | E26: 0.992 | G26: Section V, Exhibit 2, Adjustment No. W32
A27: 15 | C27: Kentucky Jurisdictional Directly Incurred O&M Incentive Compensation Expense Allocated to Shareholders | E27: =ROUND(E25*E26,0) -> -563940
A28: 16 | C28: FICA Medicare Rate | E28: 0.0145
A29: 17 | C29: Adjustment to FICA Medicare for Directly Incurred O&M Incentive Compensation Expense | E29: =ROUND(E27*E28,0) -> -8177
A31: Notes and Source
C33: Description | E33: Amount | G33: Reference
A35: =A29+1 -> 18 | C35: Employees earning more than $127,200 limit in 2017 - Transmission | E35: 0 | G35: Section V, Exhibit 2, W39
A36: =A35+1 -> 19 | C36: Employees earning more than $127,200 limit in 2017 - Distribution | E36: 31 | G36: Section V, Exhibit 2, W39
A37: =A36+1 -> 20 | C37: Employees earning more than $127,200 limit in 2017 - Big Sandy | E37: 14 | G37: Section V, Exhibit 2, W39
A38: 21 | C38: Employees earning more than $127,200 limit in 2017 - Mitchell | E38: 47 | G38: Section V, Exhibit 2, W39
A39: 22 | C39: Less: 50% of Mitchell employees billed to Wheeling Power Company | E39: =-E38*0.5 -> -23.5 | G39: Section V, Exhibit 2, W39
A40: 23 | C40: Net KPCo employees earning more than $127,200 limit in 2017 | E40: =SUM(E35:E39) -> 68.5
A41: 24 | C41: Test Year KPCo employee headcount | E41: 558 | G41: AG-1-060
A42: 25 | C42: Ratio of employees earning more than $127,200 limit in 2017 | E42: =E40/E41 -> 0.1227598566 | G42: L23 / L24

Sheet C-4 P3
A1: =Contents!A1 -> Kentucky Power Company | G1: =Contents!A3 -> Exhibit RCS-1
A2: Payroll Tax Expense - Stock-Based Compensation | G2: Schedule C-4
G3: =Contents!A2 -> Case No. 2017-00179
A4: =A!A4 -> Test Year Ended February 28, 2017 | G4: Page 3 of 3
A6: Line
A7: No. | C7: Description | E7: Amount | G7: Reference
E8: (A)
C9: Social Security
A10: 1 | C10: KPCo Proposed Level of Directly Incurred O&M Stock-Based Compensation Removed from Cost of Service | E10: =-'C-6'!I19 -> -244961 | G10: Schedule C-6, Line 2
A11: =A10+1 -> 2 | C11: Kentucky Jurisdictional Directly Incurred O&M Stock-Based Compensation Expense Allocated to Shareholders | E11: 0.992 | G11: Section V, Exhibit 2, Adjustment No. W32
A12: =A11+1 -> 3 | C12: Kentucky Jurisdictional Directly Incurred O&M Stock-Based Compensation Expense Removed from Cost of Service | E12: =ROUND(E10*E11,0) -> -243001
A13: 4 | C13: Ratio of employees earning more than $127,200 limit in 2017 | E13: =E39 -> 0.1227598566 | G13: Line 21
A14: 5 | C14: Kentucky Jurisdictional Directly Incurred O&M Stock-Based Compensation Expense for Employees Earning more than the $127,200 Limit | E14: =-ROUND(E12*E13,0) -> 29831 | G14: L3 x L4
A16: =A14+1 -> 6 | C16: Kentucky Jurisdictional Directly Incurred O&M Stock-Based Compensation Expense for Employees Earning up to the $127,200 Limit | E16: =E12+E14 -> -213170 | G16: L3 + L5
A17: 7 | C17: FICA Social Security Rate | E17: 0.062
A18: 8 | C18: Adjustment to FICA Social Security for Directly Incurred O&M Stock-Based Compensation Expense | E18: =ROUND(E16*E17,0) -> -13217
C20: Medicare
A21: =A18+1 -> 9 | C21: KPCo Proposed Level of Directly Incurred O&M Stock-Based Compensation Removed from Cost of Service | E21: =E10 -> -244961
A22: =A21+1 -> 10 | C22: Kentucky Jurisdictional Directly Incurred O&M Stock-Based Compensation Expense Allocated to Shareholders | E22: 0.992 | G22: Section V, Exhibit 2, Adjustment No. W32
A23: =A22+1 -> 11 | C23: Kentucky Jurisdictional Directly Incurred O&M Stock-Based Compensation Expense Removed from Cost of Service | E23: =ROUND(E21*E22,0) -> -243001
A24: 12 | C24: FICA Medicare Rate | E24: 0.0145
A25: 13 | C25: Adjustment to FICA Medicare for Directly Incurred O&M Stock-Based Compensation Expense | E25: =ROUND(E23*E24,0) -> -3524
A28: Notes and Source
C30: Description | E30: Amount | G30: Reference
A32: =A25+1 -> 14 | C32: Employees earning more than $127,200 limit in 2017 - Transmission | E32: 0 | G32: Section V, Exhibit 2, W39
A33: =A32+1 -> 15 | C33: Employees earning more than $127,200 limit in 2017 - Distribution | E33: 31 | G33: Section V, Exhibit 2, W39
A34: =A33+1 -> 16 | C34: Employees earning more than $127,200 limit in 2017 - Big Sandy | E34: 14 | G34: Section V, Exhibit 2, W39
A35: 17 | C35: Employees earning more than $127,200 limit in 2017 - Mitchell | E35: 47 | G35: Section V, Exhibit 2, W39
A36: 18 | C36: Less: 50% of Mitchell employees billed to Wheeling Power Company | E36: =-E35*0.5 -> -23.5 | G36: Section V, Exhibit 2, W39
A37: 19 | C37: Net KPCo employees earning more than $127,200 limit in 2017 | E37: =SUM(E32:E36) -> 68.5
A38: 20 | C38: Test Year KPCo employee headcount | E38: 558 | G38: AG-1-060
A39: 21 | C39: Ratio of employees earning more than $127,200 limit in 2017 | E39: =E37/E38 -> 0.1227598566 | G39: L19 / L20

Sheet C-5
A1: =Contents!A1 -> Kentucky Power Company | G1: =Contents!A3 -> Exhibit RCS-1
A2: Incentive Compensation Expense | G2: Schedule C-5
G3: =Contents!A2 -> Case No. 2017-00179
A4: =A!A4 -> Test Year Ended February 28, 2017 | G4: Page 1 of 1
A6: Line
A7: No. | C7: Description | E7: Amount | G7: Reference
E8: (A)
A10: 1 | C10: AG Adjustment to Incentive Compensation Expense | E10: =-E26 -> -1350120 | G10: A
A14: Notes and Source
A15: A: AG recommended adjustment to incentive compensation expense calculated below:
C17: Description | E17: Amount | G17: Reference
A19: =A10+1 -> 2 | C19: KPCo Directly Incurred O&M Incentive Compensation Expense | E19: 2273952 | G19: AG-2-060, Attachment 1
A20: =A19+1 -> 3 | C20: AEPSC O&M Incentive Compensation Expense Billed to KPCo (net of amount billed to co-owner of Mitchell) | E20: 3118781 | G20: AG-2-061, Attachment 1
A21: =A20+1 -> 4 | C21: O&M Incentive Compensation Billed to KPCo from Affiliates Other than AEPSC | E21: 51300 | G21: KPSC-2-085, Attachment 2
A22: 5 | C22: Total Test Year Incentive Compensation in KPCo's Cost of Service - Net of Company Adjustments | E22: =SUM(E19:E21) -> 5444033
A23: 6 | C23: Performance Measure Based on Financial Objectives | E23: 0.25 | G23: KPSC-1-66
A24: 7 | C24: O&M Incentive Compensation Expense Allocated to Shareholders Per AG | E24: =ROUND(E22*E23,0) -> 1361008
A25: 8 | C25: Kentucky Jurisdictional Allocation Factor | E25: 0.992 | G25: Section V, Exhibit 2, Adjustment No. W32
A26: 9 | C26: Kentucky Jurisdictional O&M Incentive Compensation Expense Allocated to Shareholders Per AG | E26: =ROUND(E24*E25,0) -> 1350120

Sheet C-6
A1: =Contents!A1 -> Kentucky Power Company | K1: =Contents!A3 -> Exhibit RCS-1
A2: Stock-Based Compensation | K2: Schedule C-6
K3: =Contents!A2 -> Case No. 2017-00179
A4: =A!A4 -> Test Year Ended February 28, 2017 | K4: Page 1 of 1
A6: Line
A7: No. | C7: Description | E7: Amount | G7: Reference
E8: (A)
A10: 1 | C10: AG Adjustment to Test Year O&M Stock-Based Compensation Expense | E10: =-I24 -> -1746748 | G10: A
A14: Notes and Source
A15: A: AG recommended adjustment to stock-based compensation expense calculated below:
E16: Performance | G16: Restricted
C17: Description | E17: Units | G17: Stock Units | I17: Total | K17: Reference
A19: =A10+1 -> 2 | C19: KPCo Directly Incurred Test Year O&M Stock-Based Compensation Expense | E19: 195097 | G19: 49864 | I19: =E19+G19 -> 244961 | K19: KIUC-1-031, Attachment 1
A20: =A19+1 -> 3 | C20: AEPSC O&M Stock-Based Compensation Expense Billed to KPCo (net of amount billed to co-owner Mitchell) | E20: 1197247 | G20: 303595 | I20: =E20+G20 -> 1500842 | K20: KIUC-1-031, Attachment 2
A21: =A20+1 -> 4 | C21: O&M Stock-Based Compensation Billed to KPCo from Affiliates Other than AEPSC | I21: 15032 | K21: KPSC-2-085, Attachment 2
A22: 5 | C22: Total O&M Stock-Based Compensation expense in KPCo's cost of service | I22: =SUM(I19:I21) -> 1760835
A23: 6 | C23: Kentucky Jurisdictional Allocation Factor | I23: 0.992 | K23: Section V, Exhibit 2, Adjustment No. W32
A24: 7 | C24: Kentucky jurisdictional Test Year O&M Stock-Based Compensation expense | I24: =ROUND(I22*I23,0) -> 1746748

Sheet C-7
A1: =Contents!A1 -> Kentucky Power Company | G1: =Contents!A3 -> Exhibit RCS-1
A2: Savings Plan Expense | G2: Schedule C-7
G3: =Contents!A2 -> Case No. 2017-00179
A4: =A!A4 -> Test Year Ended February 28, 2017 | G4: Page 1 of 1
A6: Line
A7: No. | C7: Description | E7: Amount | G7: Reference
E8: (A)
C9: I. Impact of AG Adjustments on Savings Plan Expense
A10: 1 | C10: Kentucky Jurisdictional Adjustment to O&M Payroll Expense for Merit Increases | E10: ='C-2'!S74 -> -57205 | G10: A
A11: =A10+1 -> 2 | C11: Kentucky Jurisdictional Adjustment to O&M Overtime Payroll Expense for Merit Increases | E11: ='C-3'!L50 -> -4148 | G11: B
A12: =A11+1 -> 3 | C12: Kentucky Jurisdictional Adjustment to Directly Incurred O&M Incentive Compensation Expense | E12: =E32 -> -563940 | G12: C
A13: =A12+1 -> 4 | C13: Kentucky Jurisdictional Adjustment to Directly Incurred O&M Stock-Based Compensation Expense | E13: =E39 -> -243001 | G13: D
A14: 5 | C14: Total Payroll and Incentive Compensation Expense Adjustments | E14: =SUM(E10:E13) -> -868294
A15: 6 | C15: Savings Plan Loading Rate | E15: 0.04 | G15: E
A16: 7 | C16: Impact of Adjustments to Payroll and Incentive Compensation on Savings Plan Expense | E16: =ROUND(E14*E15,0) -> -34732
C18: II. Kentucky Jurisdictional Test Year Pro Forma Savings Plan Expense
A19: =A16+1 -> 8 | C19: Adjustment to Remove the Company Matching Contributions for KPCo Employees Who Participate in the 401(k) Retirement Savings Account and in a Defined Benefit Pension Plan | E19: -1102496 | G19: KPSC-2-056
A22: Notes and Source
A23: A: See Schedule C-2
A24: B: See Schedule C-3
A25: C: See calculations below:
C27: Description | E27: Amount | G27: Reference
A28: =A19+1 -> 9 | C28: KPCo Proposed Level of Directly Incurred O&M Incentive Compensation in Cost of Service | E28: ='C-5'!E19 -> 2273952 | G28: Schedule C-5, Line 2
A29: =A28+1 -> 10 | C29: Performance Measure Based on Financial Objectives | E29: 0.25 | G29: KPSC-1-66
A30: =A29+1 -> 11 | C30: Directly Incurred O&M Incentive Compensation Expense Allocated to Shareholders Per AG | E30: =-ROUND(E28*E29,0) -> -568488
A31: 12 | C31: Kentucky Jurisdictional Allocation Factor | E31: 0.992 | G31: Section V, Exhibit 2, Adjustment No. W32
A32: 13 | C32: Kentucky Jurisdictional Directly Incurred O&M Incentive Compensation Expense Allocated to Shareholders Per AG | E32: =ROUND(E30*E31,0) -> -563940
A34: D: See calculations below:
C36: Description | E36: Amount | G36: Reference
A37: =A32+1 -> 14 | C37: KPCo Proposed Level of Directly Incurred O&M Stock-Based Compensation in Cost of Service | E37: ='C-6'!I19 -> 244961 | G37: Schedule C-6, Line 2
A38: =A37+1 -> 15 | C38: Kentucky Jurisdictional Allocation Factor | E38: 0.992 | G38: Section V, Exhibit 2, Adjustment No. W32
A39: =A38+1 -> 16 | C39: Kentucky Jurisdictional Directly Incurred O&M Stock-Based Compensation Expense Allocated to Shareholders Per AG | E39: =-ROUND(E37*E38,0) -> -243001
A41: E: Savings Plan Loading Rate from Section V, Exhibit 2, page 37, Adjustment No. W36 from KPCo's filing

Sheet C-8
A1: =Contents!A1 -> Kentucky Power Company | G1: =Contents!A3 -> Exhibit RCS-1
A2: Supplemental Executive Retirement Program ("SERP") Expense | G2: Schedule C-8
G3: =Contents!A2 -> Case No. 2017-00179
A4: =A!A4 -> Test Year Ended February 28, 2017 | G4: Page 1 of 1
E6: Kentucky
A7: Line | E7: Jurisdictional
A8: No. | C8: Description | E8: Amount | G8: Reference
E9: (A)
A11: 1 | C11: Adjustment to Remove SERP Expense Charged to KPCo | E11: =-E25 -> -6273 | G11: A
A12: =A11+1 -> 2 | C12: Adjustment to Remove SERP Expense Allocated to KPCo from AEPSC | E12: =-E34 -> -52453 | G12: B
A13: =A12+1 -> 3 | C13: Total Adjustment to Remove SERP Expense | E13: =E11+E12 -> -58726
A17: Notes and Source
A18: A: Amount calculated from the data provided in response to AG-2-079 as follows:
C20: Description | E20: Amount
A21: =A13+1 -> 4 | C21: Annual Actuarial Estimate of SERP Expense for the Rate Effective Period | E21: 8911
A22: =A21+1 -> 5 | C22: O&M Allocation Factor | E22: 0.7096
A23: =A22+1 -> 6 | C23: O&M Portion of SERP Expense | E23: =E21*E22 -> 6323.2456
A24: 7 | C24: Kentucky Jurisdictional Allocation Factor | E24: 0.992
A25: 8 | C25: KPCo Jurisdictional SERP Expense Charged to KPCo | E25: =ROUND(E23*E24,0) -> 6273
A27: B: Amount calculated from the data provided in response to AG-1-083 as follows:
C29: Description | E29: Amount
A30: =A25+1 -> 9 | C30: Total AEPSC O&M SERP Expense Billed to KPCo | E30: 71557
A31: =A30+1 -> 10 | C31: Less: AEPSC O&M SERP Expense Billed to co-owner of Mitchell by KPCo | E31: -18681
A32: =A31+1 -> 11 | C32: Adjusted AEPSC O&M SERP Expense Billed to KPCo | E32: =E30+E31 -> 52876
A33: 12 | C33: Kentucky Jurisdictional Allocation Factor | E33: 0.992
A34: 13 | C34: KPCo Jurisdictional SERP Expense Charged to KPCo | E34: =ROUND(E32*E33,0) -> 52453

Sheet C-9
A1: =Contents!A1 -> Kentucky Power Company | I1: =Contents!A3 -> Exhibit RCS-1
A2: Affiliate Charges for Corporate Aviation Expense | I2: Schedule C-9
I3: =Contents!A2 -> Case No. 2017-00179
A4: =A!A4 -> Test Year Ended February 28, 2017 | I4: Page 1 of 1
A7: Line
A8: No. | C8: Description | E8: Amount | G8: Reference
E9: (A)
A11: 1 | C11: Adjustment to Remove Affiliate Charges for Corporate Aviation Expense | E11: =-I27 -> -382769 | G11: A
A15: Notes and Source
A16: A: Amount of AEP Service Company charges to KPCo for AEP Corporate aviation expense from the response to AG-1-153 and calculated below:
G17: Kentucky
G18: Jurisdictional | I18: Kentucky
C19: FERC | G19: Allocation | I19: Jurisdictional
C20: Account | E20: Amount | G20: Factor | I20: Amount
C21: 5000 | E21: 122207 | G21: 0.985 | I21: =ROUND(E21*G21,0) -> 120374
C22: 5570 | E22: 11356 | G22: 0.985 | I22: =ROUND(E22*G22,0) -> 11186
C23: 5600 | E23: 30254 | G23: 0.985 | I23: 29800
C24: 5660 | E24: 5334 | G24: 0.985 | I24: 5254
C25: 9120 | E25: 1348 | G25: 1 | I25: 1348
C26: 9210 | E26: 217857 | G26: 0.986 | I26: 214807
C27: Total | E27: =SUM(E21:E26) -> 388356 | I27: =SUM(I21:I26) -> 382769

Sheet C-10
A1: =Contents!A1 -> Kentucky Power Company | G1: =Contents!A3 -> Exhibit RCS-1
A2: Storm Damage Expense | G2: Schedule C-10
G3: =Contents!A2 -> Case No. 2017-00179
A4: =A!A4 -> Test Year Ended February 28, 2017 | G4: Page 1 of 1
E6: Kentucky
A7: Line | E7: Jurisdictional
A8: No. | C8: Description | E8: Amount | G8: Reference
E9: (A)
A11: 1 | C11: Reverse KPCo Proposed Adjustment to Increase Test Year Storm Damage Expense | E11: -595932 | G11: A
A16: Notes and Source
A17: A: Amount from Section V, Exhibit 2, page 18 from KPCo's filing

Sheet C-11
A1: =Contents!A1 -> Kentucky Power Company | K1: =Contents!A3 -> Exhibit RCS-1
A2: Relocation Expense | K2: Schedule C-11
K3: =Contents!A2 -> Case No. 2017-00179
A4: =A!A4 -> Test Year Ended February 28, 2017 | K4: Page 1 of 1
A6: Line
A7: No. | C7: Description | E7: Amount | G7: Reference
E8: (A)
A10: 1 | C10: Adjustment to Test Year Relocation Expense | E10: =G30 -> -140972 | G10: A
A14: Notes and Source
A15: A: Amount calculated below from the data provided in response to AG-1-251
E17: FERC
C18: Description | E18: Account | G18: Amount | I18: Reference
A19: =A10+1 -> 2 | C19: 2014 Relocation Expense | E19: 9210001 | G19: 56481.15 | I19: AG-1-251
A20: =A19+1 -> 3 | C20: 2015 Relocation Expense | E20: 9210001 | G20: =69880.15+75895 -> 145775.15 | I20: AG-1-251
A21: =A20+1 -> 4 | C21: 2016 Relocation Expense | E21: 9210001 | G21: 323041.51 | I21: AG-1-251
A22: 5 | C22: Total Relocation Expense | G22: =SUM(G19:G21) -> 525297.81
A23: 6 | C23: Number of Employees Transferred | G23: 20 | I23: Line 17
A24: 7 | C24: Average Cost Per Employee Transferred | G24: =G22/G23 -> 26264.8905 | I24: L5 / L6
A25: 8 | C25: Average Number of Employees Relocated Over 3-year Period | G25: =G40 -> 6.666666667 | I25: Line 19
A26: 9 | C26: Normalized Relocation Expense | G26: =G24*G25 -> 175099.27 | I26: L7 x L8
A27: 10 | C27: Test Year Relocation Expense | G27: 318072.58 | I27: AG-1-251
A28: 11 | C28: Adjustment to Relocation Expense | G28: =G26-G27 -> -142973.31
A29: 12 | C29: Kentucky Jurisdictional Allocation Factor | G29: 0.986
A30: 13 | C30: Kentucky Jurisdictional Adjustment to Relocation Expense | G30: =ROUND(G28*G29,0) -> -140972
G32: Number of
G33: Employees
E34: Year | G34: Relocated
A35: =A30+1 -> 14 | E35: 2014 | G35: 4
A36: =A35+1 -> 15 | E36: 2015 | G36: 9
A37: =A36+1 -> 16 | B37: =B36+1 -> 1 | E37: 2016 | G37: 7
A38: 17 | B38: 2 | E38: Total | G38: =SUM(G35:G37) -> 20
A39: 18 | B39: 3 | E39: Years | G39: 3
A40: 19 | B40: 4 | E40: Average Number of Employees Relocated Over 3-year Period | G40: =G38/G39 -> 6.666666667 | I40: L15 / L16

Sheet C-12
A1: =Contents!A1 -> Kentucky Power Company | H1: =Contents!A3 -> Exhibit RCS-1
A2: Gain on Sale of Utility Property | H2: Schedule C-12
H3: =Contents!A2 -> Case No. 2017-00179
A4: =A!A4 -> Test Year Ended February 28, 2017 | H4: Page 1 of 1
A6: Line
A7: No. | C7: Description | E7: Amount | G7: Reference
A10: 1 | C10: Adjustment to Amortize Gain on Sale of Utility Plant | E10: =-E23 -> -327240 | G10: A
A15: Notes and Source
A16: A: Adjustment derived from the response to AG-2-097 and calculated below:
C18: Description | E18: Amount
A19: 2 | C19: Gain on Sale of 739 Acres of Land in Lewis County, KY | E19: 996669.11
A20: =A19+1 -> 3 | C20: AG Recommended Amortization Period (Years) | E20: 3
A21: =A20+1 -> 4 | C21: Amortized Gain on Sale of Utility Property | E21: =E19/E20 -> 332223.0367
A22: 5 | C22: Kentucky Jurisdictional Allocation Factor | E22: 0.985
A23: 6 | C23: Kentucky Jurisdictional Amortized Gain on Sale of Utility Property | E23: =ROUND(E21*E22,0) -> 327240

Sheet C-13
A1: =Contents!A1 -> Kentucky Power Company | G1: =Contents!A3 -> Exhibit RCS-1
A2: Cash Surrender Value of Life Insurance Policies | G2: Schedule C-13
G3: =Contents!A2 -> Case No. 2017-00179
A4: =A!A4 -> Test Year Ended February 28, 2017 | G4: Page 1 of 1
A6: Line
A7: No. | C7: Description | E7: Amount | G7: Reference
E8: (A)
A10: 1 | C10: Adjustment to Remove Cash Surrender Value of Life Insurance Policies | E10: -27323.17 | G10: A
A11: 2 | C11: Kentucky Jurisdictional Allocation Factor | E11: 0.986
A12: 3 | C12: Kentucky Jurisdictional Adjustment to Remove Cash Surrender Value of Life Insurance Policies | E12: =ROUND(E10*E11,0) -> -26941
A17: Notes and Source
A18: A: Amount from the response to AG-2-087

Sheet C-14Int.Sync
A1: =Contents!A1 -> Kentucky Power Company | I1: =Contents!$Q$4 -> Exhibit RCS-1
A2: Interest Synchronization | I2: Schedule C-14
I3: =Contents!A2 -> Case No. 2017-00179
A4: =A!A4 -> Test Year Ended February 28, 2017 | I4: Page 1 of 1
A7: Line | E7: KPCo | G7: AG | I7: AG
A8: No. | C8: Description | E8: Amount | G8: Amount | I8: Adjustment
E9: (A) | G9: (B) | I9: (C)
A11: 1 | C11: Long Term Debt, per Capitalization (Section V, Sch 3, C 14, Ln 1) | E11: =D!E11 -> 648913758.2 | G11: =D!E18 -> 648913758.2
A12: 2 | C12: Long Term Debt Rate - Schedule D | E12: 0.0436 | G12: =D!I18 -> 0.0436
A13: 3 | C13: Annualized Long Term Debt Interest | E13: =ROUND(E11*E12,0) -> 28292640 | G13: =ROUND(G11*G12,0) -> 28292640
A15: 4 | C15: Short Term Debt, per Capitalization (Section V, Sch 3, C 14, Ln 2) | E15: 0 | G15: =D!E19 -> 0
A16: 5 | C16: Short Term Debt Rate - Schedule D | E16: 0.008 | G16: =D!I19 -> 0.008
A17: 6 | C17: Annualized Short Term Debt Interest | E17: =ROUND(E15*E16,0) -> 0 | G17: =ROUND(G15*G16,0) -> 0
A19: 7 | C19: Accounts Receivable Financing | E19: =D!E13 -> 46105008.99 | G19: =D!E20 -> 46105008.99
A20: 8 | C20: Accounts Receivable Financing Rate - Schedule D | E20: =D!I13 -> 0.0195 | G20: =D!I20 -> 0.0195
A21: 9 | C21: Annualized Accounts Receivable Financing | E21: =ROUND(E19*E20,0) -> 899048 | G21: =ROUND(G19*G20,0) -> 899048
A23: 10 | C23: Total Annualization Interest (Ln 3 + Ln 6 + Ln9) | E23: =E13+E17+E21 -> 29191688 | G23: =G13+G17+G21 -> 29191688
A25: 11 | C25: Total Interest Charges per Books (Excludes Account 4320000 - ABFUDC) | E25: 46504720 | G25: 46504720 | I25: Note A
A26: 12 | C26: Kentucky Jurisdictional Allocation Factor | E26: 0.985 | G26: 0.985
A27: 13 | C27: Retail Interest Expense | E27: =ROUND(E25*E26,0) -> 45807149 | G27: =ROUND(G25*G26,0) -> 45807149
A29: 14 | C29: Increase/(Decrease) Interest Expense (Ln 10 - Ln 13) | E29: =E23-E27 -> -16615461 | G29: =G23-G27 -> -16615461
A30: 15 | C30: State Income Tax Rate | E30: 0.058742 | G30: 0.058742
A31: 16 | C31: State Income Tax Adjustment (Ln 14 X Ln 15) | E31: =-ROUND(E29*E30,0) -> 976025 | G31: =-ROUND(G29*G30,0) -> 976025 | I31: =G31-E31 -> 0
A33: 17 | C33: Net Change for Federal Income Tax (Ln 14 + Ln 16) | E33: =E29+E31 -> -15639436 | G33: =G29+G31 -> -15639436
A34: 18 | C34: Federal Income Tax Rate | E34: 0.35 | G34: 0.35
A35: 19 | C35: Federal Income Tax Adjustment (Ln 17 X Ln 18) | E35: =-ROUND(E33*E34,0) -> 5473803 | G35: =-ROUND(G33*G34,0) -> 5473803 | I35: =G35-E35 -> 0
A37: 20 | C37: Total State and Federal Income Tax Expense (ln 16 + ln 19) | E37: =E31+E35 -> 6449828 | G37: =G31+G35 -> 6449828 | I37: =I31+I35 -> 0
A40: Notes and Source
A41: Col. A: Amounts from the supplemental response to KPSC-1-73, Supplemental Attachment 94_W49
A42: Col. B: Long term and short term capitalization amounts from Schedule D
A44: A: Amount reflected on Section IV, page 9 of 19 of the Company's CFIT schedules

Sheet C-15
A1: =Contents!A1 -> Kentucky Power Company | G1: =Contents!A3 -> Exhibit RCS-1
A2: Rate Case Expense | G2: Schedule C-15
G3: =Contents!A2 -> Case No. 2017-00179
A4: =A!A4 -> Test Year Ended February 28, 2017 | G4: Page 1 of 1
E6: Kentucky
A7: Line | E7: Jurisdictional
A8: No. | C8: Description | E8: Amount | G8: Reference
E9: (A)
A11: 1 | C11: Adjustment to Remove KPCo's Proposed Amortization of Rate Case Expense | E11: =-E30 -> -458333 | G11: A
A15: Notes and Source
A16: A: The amount of rate case expense being removed is calculated below:
C18: Description | E18: Amount | G18: Reference
A20: 2 | C20: Communcation Counsel of America, Inc. Costs Through August 31, 2017 | E20: 33390.58 | G20: KPSC-1-56 (Second Supplemental)
A21: 3 | C21: Amortized Over 3 Years | E21: 3
A22: 4 | C22: Annual Level of Communication Counsel of America, Inc. Costs | E22: =E20/E21 -> 11130.19333
A24: 5 | C24: Total KPCo Requested Annual Rate Case Expense | E24: 458333
A25: 6 | C25: Annual Level of Communication Counsel of America, Inc. Costs | E25: =-E22 -> -11130.19333 | G25: Line 4
A26: 7 | C26: Remaining Annual Rate Case Expense Requested in KPCo's Filing | E26: =E24+E25 -> 447202.8067
A28: 8 | C28: Total KPCo Requested Annual Rate Case Expense | E28: =E22+E26 -> 458333 | G28: L4 + L7
A29: 9 | C29: Kentucky Jurisdictional Allocation Factor - SPECIFIC | E29: 1
A30: 10 | C30: Kentucky Jurisdictional Rate Case Expense | E30: =E28*E29 -> 458333

Sheet <- Used
